Cogmind - Beta 14 @@@ ROGUE MODE // 2024.10.24 @ 15:11:31 Player: Some Pennies Result: Destroyed by P-80 Master with Gamma Rifle Performance ------------- Evolutions (7) 3500 Regions Visited (31) 6200 Robots Destroyed (534) 2670 Value Destroyed (23022) 23022 Prototype IDs (92) 1840 Alien Tech Used (5) 1000 Bonus (13516) 13516 TOTAL SCORE: 51748 Bonus ------- High Alert Combat Kills 2273 Follower Combat Kills 423 Network Hubs Disabled 600 Met Data Miner 300 Met Imprinter 300 Destroyed Z-Imprinter 1000 Triggered Deep Caves Wall 500 Exposed GOLEM Chamber 500 Met Zhirov 300 Met Warlord at Base 500 MAIN.C Attacked Warlord 500 Warlord Defense Kills 620 Met R17 at Cetus 500 Used Core Reset Matrix 3000 Met R17 at Research 2000 Scanned by Researcher 500 Friendly Fire -300 Cogmind --------- Core Integrity 0/1300 Matter 10/300 Energy 565/1100 System Corruption 39% Temperature Cool (0) Movement Walking (180) Ox1 Location -3/Section 7 Parts ------- > --- POWER (3) -------- (None) > --- PROPULSION (5) --- Assembled Alloy Leg Assembled Alloy Leg > --- UTILITY (10) ----- Huge Storage Unit Assembled Biocell Array Assembled Combat Suite Core Physics Calibrator > --- WEAPON (3) ------- (None) > --- INVENTORY (25) --- Experimental Energy Well (0) Experimental Sensor Array Advanced Kinecellerator Improved Transmission Jammer Cloak of Protection Zionite Weapon Casing Experimental EM Disruption Field Advanced Force Field Advanced Force Field Ghost Barrier Spacefold Activator EMDS Peak State ------------ > --- POWER ------------ Quantum Reactor Vortex Chain Reactor > --- PROPULSION ------- Armored Heavy Treads Experimental Biometal Heavy Treads Assembled Alloy Leg > --- UTILITY ---------- Huge Storage Unit Assembled Biocell Array Advanced Signal Interpreter Assembled Combat Suite Improved Transmission Jammer Assembled Alloy Armor Heavy Regenerative Plating Advanced Force Field Spacefold Activator > --- WEAPON ----------- Assembled Focal Cannon Assembled Focal Cannon Assembled Focal Cannon > --- INVENTORY -------- Armored Heavy Treads Armored Heavy Treads Experimental Cooling System Experimental Energy Well Experimental Energy Well Experimental Sensor Array Advanced Kinecellerator Cloak of Protection Zionite Weapon Casing Zionite Weapon Casing Centrium Heavy Armor Plating Experimental EM Disruption Field Advanced Force Field Ghost Barrier GOLEM Unit Core Physics Calibrator EMDS Improved Proton Missile Launcher Chain Missile Launcher [Rating: 198] Favorites ----------- Power Assembled Flux Generator Engine Ion Engine Power Core Reinforced Fission Core Reactor Assembled Flux Generator Propulsion Assembled Alloy Leg Treads Light Treads Leg Assembled Alloy Leg Hover Unit Cooled Antigrav System Flight Unit Improved Flight Unit Utility Huge Storage Unit Device GOLEM Unit Storage Huge Storage Unit Processor Improved Signal Interpreter Hackware Hacking Suite Protection Assembled Alloy Armor Artifact Spacefold Activator Weapon Assembled Focal Cannon Energy Gun Spread Laser Energy Cannon Assembled Focal Cannon Ballistic Gun Improved Assault Rifle Ballistic Cannon Tri-rail Accelerator Launcher Heavy Missile Launcher Special Weapon Multitool Impact Weapon Hammer Slashing Weapon Scythe Piercing Weapon Makeshift Spear Special Melee Weapon Improved Datajack Build | -11 -10 -10 -9 -9 -8 -7 -7 -7 -7 -6 -6 -6 -6 -6 -6 -5 -5 -5 -5 -5 -4 -4 -4 -4 -4 -4 -4 -4 -3 -3 -3 ------- Run | Yrd Mat Min Mat Sto Mat Fac Low Low Dat Pro Fac Low Low Zio Dee Pro Fac Upp Upp War Pro Fac Was Fac Ext Cet Arc Hub Res Qua Sec Slots Evolved 14 | . . . 2 . 2 2 . . . . 2 . . . . . 2 . . . . 2 . . . . . . 2 . . Power 2 | . . . . . . . . . . . . . . . . . 1 . . . . 1 . . . . . . . . . Propulsion 3 | . . . 1 . 1 1 . . . . . . . . . . . . . . . . . . . . . . . . . Utility 8 | . . . 1 . 1 1 . . . . 2 . . . . . 1 . . . . 1 . . . . . . 1 . . Weapon 1 | . . . . . . . . . . . . . . . . . . . . . . . . . . . . . 1 . . Parts Attached 731 | 7 11 10 47 37 68 28 2 4 . 4 44 11 13 17 62 4 53 4 2 26 4 41 9 18 39 7 9 52 16 27 55 Power 55 | 1 1 1 3 4 5 6 . . . . 2 2 . . 6 . . . . 1 . 3 2 . 5 3 . 6 1 1 2 Engine 19 | 1 1 1 3 4 2 2 . . . . 1 2 . . 1 . . . . . . . . . . . . 1 . . . Core 17 | . . . . . 3 4 . . . . 1 . . . . . . . . . . 3 . . 2 . . 4 . . . Reactor 19 | . . . . . . . . . . . . . . . 5 . . . . 1 . . 2 . 3 3 . 1 1 1 2 Propulsion 131 | 2 2 . 18 8 20 5 2 . . . 15 . . 3 5 . 8 1 . 8 . 5 4 1 11 1 . 6 2 1 3 Treads 98 | 2 2 . 15 8 19 . 1 . . . 8 . . 3 2 . 6 1 . 1 . 3 4 1 9 1 . 6 2 1 3 Leg 20 | . . . 2 . . . . . . . 7 . . . 1 . 2 . . 5 . 1 . . 2 . . . . . . Wheel . | . . . . . . . . . . . . . . . . . . . . . . . . . . . . . . . . Hover 3 | . . . . . . . . . . . . . . . 2 . . . . 1 . . . . . . . . . . . Flight 10 | . . . 1 . 1 5 1 . . . . . . . . . . . . 1 . 1 . . . . . . . . . Utility 390 | 2 4 7 8 10 21 13 . 2 . 4 14 4 3 5 34 4 34 2 1 15 4 30 3 17 19 2 8 38 13 24 45 Device 229 | 1 1 7 3 5 13 4 . . . 4 8 3 2 4 14 3 23 2 1 6 3 20 . 9 8 1 3 28 8 17 28 Storage 20 | 1 3 . 1 . 2 1 . . . . 1 . . . 3 . 1 . . 2 . 1 . . 1 . . . 1 . 2 Processor 14 | . . . 1 2 1 1 . . . . 2 . . . 1 . 1 . . 1 . 1 . 2 . . . . 1 . . Hackware 20 | . . . 1 1 . 4 . . . . 2 . . . . . 1 . . . 1 1 . 1 1 . 3 . 3 1 . Protection 101 | . . . 2 2 5 3 . 2 . . 1 1 1 1 16 1 8 . . 6 . 7 3 5 9 1 2 10 . 5 10 Artifact 6 | . . . . . . . . . . . . . . . . . . . . . . . . . . . . . . 1 5 Weapon 155 | 2 4 2 18 15 22 4 . 2 . . 13 5 10 9 17 . 11 1 1 2 . 3 . . 4 1 1 2 . 1 5 Energy Gun 14 | 1 2 1 2 . 4 . . . . . 1 . . . 3 . . . . . . . . . . . . . . . . Energy Cannon 61 | . 2 . 4 5 11 1 . . . . 8 1 5 5 8 . 7 . . . . 1 . . 2 . . . . 1 . Ballistic Gun 21 | 1 . . 7 7 2 . . . . . 1 1 . . . . 1 . . . . . . . . 1 . . . . . Ballistic Cannon 3 | . . . . . 1 . . . . . . . . . . . 2 . . . . . . . . . . . . . . Launcher 22 | . . . 2 1 3 . . 1 . . . . 2 . . . 1 1 1 1 . 1 . . 1 . . 2 . . 5 Special Weapon 12 | . . . . . . . . . . . . . 1 3 5 . . . . 1 . 1 . . 1 . . . . . . Impact Weapon 3 | . . 1 . . . . . . . . . 2 . . . . . . . . . . . . . . . . . . . Slashing Weapon 13 | . . . 2 1 . 2 . 1 . . 3 . 2 1 1 . . . . . . . . . . . . . . . . Piercing Weapon 1 | . . . . . . . . . . . . 1 . . . . . . . . . . . . . . . . . . . Special Melee Weapon 5 | . . . 1 1 1 1 . . . . . . . . . . . . . . . . . . . . 1 . . . . Unidentified Prototypes 62 | . 1 1 5 2 4 1 . . . . 1 . . 1 11 . 4 . . 13 . 2 . . 1 2 1 2 1 5 4 Corrupted Parts 5 | . . . . . . . . . . . . . . 1 . . 2 . . . . . . . . . . 1 . . 1 System Corruption 30 | . . . . . . . . . . . . . . 2 . . 8 . . . . . . . . . . 10 . . 10 Parts Lost 71 | . . . . 2 5 1 . . . 1 1 2 . . 2 1 7 . . . . 3 1 . 7 . 1 5 . 2 30 Power 9 | . . . . . . . . . . . . 1 . . . . 1 . . . . . . . 1 . . 2 . . 4 Propulsion 12 | . . . . . 2 . . . . . . . . . . . 2 . . . . . 1 . 3 . . . . . 4 Utility 38 | . . . . 1 2 1 . . . 1 . 1 . . 2 1 3 . . . . 3 . . 2 . 1 3 . 2 15 Weapon 12 | . . . . 1 1 . . . . . 1 . . . . . 1 . . . . . . . 1 . . . . . 7 Highest Loss Streak 15 | . . . . 1 2 1 . . . 1 1 2 . . 2 1 3 . . . . 1 1 . 4 . 1 1 . 1 15 To Critical Strikes 2 | . . . . . . . . . . . . . . . . . . . . . . . . . 1 . . . . . 1 Average Slot Usage (%) 86 | . 99 99 99 99 99 99 98 100 100 93 90 92 93 87 83 86 83 81 82 80 77 84 64 77 83 80 74 75 77 79 73 Engine 3 | . 14 14 11 10 5 . . . . . 1 4 6 6 1 . . . . . . . . . . . . . . . . Reactor 3 | . . . . . . . . . . . . . . . 4 6 4 5 5 5 4 5 7 10 9 10 10 7 4 8 7 Treads 16 | . 27 28 30 33 36 . . . . . 6 26 26 26 17 6 9 10 11 6 5 10 6 6 9 5 5 9 9 9 7 Leg 7 | . . . 1 . . . . . . . 10 . . . 7 20 16 17 17 21 21 14 9 10 10 15 14 9 4 4 5 Flight 1 | . . . . . . 36 36 38 38 38 7 . . . . . . . . . . . . . . . . . . . . Device 12 | . 14 13 6 7 11 6 7 7 7 6 7 19 20 16 13 13 13 17 17 6 8 14 11 18 15 18 9 12 19 14 18 Storage 9 | . 14 14 11 11 9 7 7 7 7 7 6 6 6 6 9 13 11 11 11 11 11 9 10 10 10 9 9 10 8 8 8 Processor 3 | . . . 7 . . . 7 7 7 7 12 13 13 10 2 . 5 5 5 5 5 2 . 2 2 . . . 3 4 3 Hackware 2 | . . . 4 3 9 16 7 7 7 7 10 . . . . . . . . . 2 1 1 1 6 . 6 3 2 4 . Protection 6 | . . . 4 10 6 5 7 7 7 1 5 5 6 6 10 13 6 . . 9 5 9 5 5 5 10 8 7 4 8 6 Energy Gun 2 | . 19 27 . . 1 . . . . . 1 . . . . . . . . . . . . . . . . . . . . Energy Cannon 9 | . 6 . 8 13 15 . . . . . 5 5 6 2 12 13 10 10 10 10 7 8 8 9 9 9 8 9 12 13 11 Ballistic Gun 1 | . 2 . 11 8 . . . . . . 2 5 1 . . . . . . . . . . . . . . . . . . Peak Build Rating 198 | 7 14 18 24 26 35 47 47 49 46 49 72 77 77 82 129 127 142 139 139 150 147 163 152 154 164 167 178 173 186 189 198 Average Rating 98 | 5 11 12 21 23 29 39 45 46 46 42 58 74 74 76 103 123 133 138 137 138 131 150 141 143 141 160 157 161 174 184 172 On Entrance 94 | . 7 12 13 21 26 35 46 46 46 46 44 72 77 71 78 123 123 139 139 136 141 145 148 140 142 159 167 170 152 176 185 Naked Turns . | . . . . . . . . . . . . . . . . . . . . . . . . . . . . . . . . Heaviest Build 238 | 15 54 52 62 69 109 25 25 25 25 25 111 114 115 134 135 134 169 165 167 177 177 182 215 215 190 223 223 222 212 217 238 Greatest Support 160 | 40 40 40 60 60 82 25 25 25 25 25 160 160 160 160 158 84 88 88 88 138 110 110 70 93 121 85 85 160 120 120 145 Greatest Overweight (x) 61 | . 1 1 5 1 1 . 1 . . . 2 . . . 2 1 3 1 1 2 1 3 6 6 5 2 61 3 3 6 2 Average Overweight (x) . | . . 1 . . . . . . . . . . . . . 1 1 1 1 1 1 1 3 2 2 2 12 2 1 1 1 Largest Inventory Capacity 25 | 8 20 20 20 20 25 25 10 10 10 10 25 25 25 25 25 25 25 25 25 25 25 25 25 25 25 25 25 25 25 25 25 Average Capacity 23 | 7 17 20 20 20 24 10 10 10 10 10 21 25 25 25 25 25 25 25 25 25 25 24 25 25 25 25 25 25 24 25 25 Most Carried 25 | 3 20 20 20 20 25 24 10 10 10 10 25 25 25 25 25 25 25 25 25 25 25 25 25 25 25 25 25 25 25 25 25 Average Carried 22 | 1 16 19 19 19 24 10 10 9 10 9 19 24 24 24 24 24 24 24 24 24 24 23 24 24 23 24 24 24 22 24 21 Final Capacity 25 | 8 20 20 20 20 25 10 10 10 10 10 25 25 25 25 25 25 25 25 25 25 25 25 25 25 25 25 25 25 25 25 25 Final Carried 25 | 3 20 20 20 20 25 10 10 10 10 10 25 25 25 25 25 25 25 25 25 25 25 25 25 23 25 25 25 24 25 22 13 Class Distribution -------------------- 36% | Golem 26% | Mutant 12% | Scavenger-Mutant 11% | Scavenger-Golem 4% | Commander-Mutant Dominant Class ---------------- Mutant | -10/Materials Mutant | -10/Mines Mutant | -9/Materials Mutant | -9/Storage Scavenger-Mutant | -8/Materials Hacker-Sprinter | -7/Factory Sprinter | -7/Lower Caves Sprinter | -7/Lower Caves Sprinter | -7/Data Miner Sprinter | -6/Proximity Caves Hacker-Mutant | -6/Factory Mutant | -6/Lower Caves Mutant | -6/Lower Caves Commander-Mutant | -6/Zion Mutant | -6/Deep Caves Golem | -5/Proximity Caves Golem | -5/Factory Golem | -5/Upper Caves Golem | -5/Upper Caves Golem | -5/Warlord Golem | -4/Proximity Caves Scavenger-Golem | -4/Factory Golem | -4/Waste Golem | -4/Factory Scavenger-Golem | -4/Extension Golem | -4/Cetus Scavenger-Golem | -4/Archives Scavenger-Golem | -4/Hub_04(d) Golem | -3/Research Golem | -3/Quarantine Golem | -3/Section 7 Resources | -11 -10 -10 -9 -9 -8 -7 -7 -7 -7 -6 -6 -6 -6 -6 -6 -5 -5 -5 -5 -5 -4 -4 -4 -4 -4 -4 -4 -4 -3 -3 -3 ----------- Run | Yrd Mat Min Mat Sto Mat Fac Low Low Dat Pro Fac Low Low Zio Dee Pro Fac Upp Upp War Pro Fac Was Fac Ext Cet Arc Hub Res Qua Sec Matter Collected 10115 | 306 232 134 1092 679 791 281 40 102 . 35 486 244 273 133 737 163 644 78 123 268 66 343 234 240 754 95 72 552 64 289 565 Remotely 15 | . . . . . . . . . . . . . . . 15 . . . . . . . . . . . . . . . . Salvage Created 29082 | 154 654 254 2234 1258 3034 303 47 26 . . 932 376 363 . 1317 320 1678 190 206 222 586 1049 1465 752 2911 586 72 4311 126 1413 2243 Parts 1382 | 6 47 23 146 74 167 21 1 2 . . 33 11 11 . 33 13 66 7 8 7 27 63 25 41 97 18 7 187 7 104 130 Haulers Intercepted 25 | . 2 . 5 5 3 1 . . . . . . . . . . 3 . . . . 1 . . 2 . . 2 . 1 . Recyclers Shooed 15 | . 1 . 2 3 1 1 . . . . 3 . . . . . . . . . . 1 . 1 . . . 1 1 . . Parts Field Recycled . | . . . . . . . . . . . . . . . . . . . . . . . . . . . . . . . . Retrieved Matter . | . . . . . . . . . . . . . . . . . . . . . . . . . . . . . . . . Parts Self-Destructed 83 | . . . . . . . . 4 . . . 15 8 . . 13 . 9 7 . 27 . . . . . . . . . . Prevented . | . . . . . . . . . . . . . . . . . . . . . . . . . . . . . . . . Kills | -11 -10 -10 -9 -9 -8 -7 -7 -7 -7 -6 -6 -6 -6 -6 -6 -5 -5 -5 -5 -5 -4 -4 -4 -4 -4 -4 -4 -4 -3 -3 -3 ------- Run | Yrd Mat Min Mat Sto Mat Fac Low Low Dat Pro Fac Low Low Zio Dee Pro Fac Upp Upp War Pro Fac Was Fac Ext Cet Arc Hub Res Qua Sec Combat Hostiles Destroyed 405 | . 15 5 39 18 44 . . 1 . . 8 6 5 . 49 3 22 6 1 4 11 17 6 10 34 8 . 47 1 16 29 Melee 1 | . . . . . . . . . . . . . 1 . . . . . . . . . . . . . . . . . . Guns 37 | . 8 5 15 2 3 . . . . . 3 1 . . . . . . . . . . . . . . . . . . . Cannons 265 | . 7 . 18 11 33 . . . . . 3 4 1 . 18 3 16 2 1 3 11 14 6 10 22 8 . 33 1 16 24 AOE 74 | . . . 5 3 4 . . 1 . . . . 3 . 29 . 3 4 . . . 3 . . 12 . . 4 . . 3 Classes Destroyed 32 | 2 6 1 4 2 2 . 1 1 . . 1 1 . . 3 1 2 . . 1 . . 1 . . . . 1 . . 2 Worker 24 | . 5 1 6 2 1 2 . . . . . . . . . . 1 . . . . 1 . 1 1 . . 2 . . 1 Builder 26 | . . . 2 . 3 1 . . . . . . . . . . . . . . . 2 . 1 5 . . 5 1 2 4 Tunneler 10 | 3 . 2 . . 1 . . . . . . . . . . . . . . . . . . . 3 . . 1 . . . Hauler 25 | . 2 . 5 5 3 1 . . . . . . . . . . 3 . . . . 1 . . 2 . . 2 . 1 . Recycler 39 | 1 1 1 3 2 12 3 . . . . 3 . . . . . 1 . . . . . . . 7 . . 3 . 1 1 Minesweeper 2 | . . . . . . . . 1 . . . . . . . 1 . . . . . . . . . . . . . . . Mechanic 3 | . . . . 1 . . . . . . . . . . . . . . . . . . . . 1 . . . . . 1 Operator 12 | . 2 . 3 1 1 1 . . . . . . . . . . . . . . . . . . 1 . . . . 1 2 Drone 1 | . . . . 1 . . . . . . . . . . . . . . . . . . . . . . . . . . . Watcher 27 | . 3 . 5 2 5 . . . . . . . . . . . 1 . . . . 1 . 1 . 1 . 2 1 3 2 Swarmer 61 | . 9 . 5 4 15 . . 1 . . . 1 3 . . . . 4 . . 5 3 . . 4 . . . . 3 4 Cutter 3 | . . . . . . . . . . . . . . . . . . . . . . . . . . . . 3 . . . Grunt 120 | . 6 4 24 4 10 . . . . . 5 4 . . . 1 7 . . . 4 1 . 3 17 . . 16 1 4 9 Brawler 5 | . . . 1 . 1 . . . . . . . . . . . . 1 . . . . . . 2 . . . . . . Duelist 7 | . . . 1 1 2 . . . . . . . . . . . . 1 . 1 . . . . . . . 1 . . . Protector 3 | . . . . . 1 . . . . . . . . . . . . . . . . . . . . . . 2 . . . Researcher 1 | . . . . . . . . . . . . . . . . . . . . . . . . . . . . . . . 1 Sentry 45 | . . . 8 9 12 . . . . . 1 . 1 . . . . . . . . 1 . 1 4 . . 6 . . 2 Specialist 4 | . . . . . . . . . . . . . . . . . 1 . . . . 2 . . 1 . . . . . . Hunter 27 | . . . . . 3 . . . . . . . . . . 1 7 . . . . 2 . 2 4 . . 8 . . . Programmer 49 | . . . . . . . . . . . 2 . . . . . 5 . . 2 1 8 . 4 1 . . 6 . 9 11 Heavy 3 | . . . . . . . . . . . . . . . . . 2 . . . . . . . . . . 1 . . . Behemoth 4 | . . . . . . . . . . . . . . . . 1 . . 1 . 1 . . . 1 . . . . . . Compactor 6 | . . . . . . . . . . . . . . . . . . . . . . . 6 . . . . . . . . Cetus Guard 8 | . . . . . . . . . . . . . . . . . . . . . . . . . . 8 . . . . . S7 Guard 2 | . . . . . . . . . . . . . . . . . . . . . . . . . . . . . . . 2 Lightning 4 | . . . . . . . . . . . . . . . . . . . . . . . . . . . . 4 . . . Striker 1 | . . . . . . . . . . . . . . . . . . . . 1 . . . . . . . . . . . Alpha 7 1 | . . . . . . . . . . . . . . . . . . . . . . . . . . . . . . . 1 Z-Technician 5 | . . . . . . . . . . . . . . . 5 . . . . . . . . . . . . . . . . Z-Light 8 | . . . . . . . . . . . . . . . 8 . . . . . . . . . . . . . . . . Packrat 2 | . . . . . . . . . . . . . . . . . . . 2 . . . . . . . . . . . . Samaritan 1 | . . . . . . . 1 . . . . . . . . . . . . . . . . . . . . . . . . Assembler 2 | . . . . . . . . . . . . . . . 2 . . . . . . . . . . . . . . . . Assembled 38 | . . 1 . . . . . . . . . . . . 37 . . . . . . . . . . . . . . . . Golem 3 | . . . . . . . . . . . . . . . 3 . . . . . . . . . . . . . . . . Mutant 2 | . . . . . . . . . . . . 1 1 . . . . . . . . . . . . . . . . . . Best Kill Streak 36 | 2 5 3 5 6 5 3 . 1 . . 2 2 3 . 36 2 4 4 1 3 4 4 3 4 18 5 . 7 2 4 6 Combat Bots Only 34 | . 5 2 4 5 4 . . 1 . . 2 2 3 . 34 2 3 4 1 3 4 3 3 4 9 4 . 5 1 4 3 Max Kills in Single Turn 24 | 1 1 1 3 3 3 1 1 1 . . 1 1 3 . 24 1 4 4 1 1 2 2 1 2 7 1 . 2 1 1 3 Gunslinging . | . . . . . . . . . . . . . . . . . . . . . . . . . . . . . . . . Exploded 22 | . . . 2 3 3 . . 1 . . . . 3 . 22 . 3 4 . . . 2 . . 4 . . 1 . . 1 Melee 1 | . . . . . . . . . . . . . 1 . . . . . . . . . . . . . . . . . . Uniques/NPCs Destroyed 1 | . . . . . . . . . . . . . . . 1 . . . . . . . . . . . . . . . . Z-Imprinter (-6/Deep Caves) Combat | -11 -10 -10 -9 -9 -8 -7 -7 -7 -7 -6 -6 -6 -6 -6 -6 -5 -5 -5 -5 -5 -4 -4 -4 -4 -4 -4 -4 -4 -3 -3 -3 -------- Run | Yrd Mat Min Mat Sto Mat Fac Low Low Dat Pro Fac Low Low Zio Dee Pro Fac Upp Upp War Pro Fac Was Fac Ext Cet Arc Hub Res Qua Sec Hostile Shots Fired 3368 | . 97 11 116 105 213 22 . 2 . 14 73 43 30 . 57 45 242 22 6 43 86 162 12 63 268 37 . 553 2 114 930 Missed 942 | . 26 3 31 35 59 12 . 1 . 3 16 9 8 . 16 15 50 6 1 8 20 71 1 22 81 9 . 120 2 47 270 Damage Taken 40243 | . 636 89 1103 959 1988 147 . 16 . 205 998 513 201 . 1262 491 3422 375 109 845 1077 1561 506 614 4153 619 222 5585 . 1062 11485 Core 3260 | . 122 . 173 94 151 31 . . . 12 32 34 28 . 116 34 303 25 . 32 65 133 48 2 178 . 47 285 . 11 1304 Absorbed by Shields 2429 | . . . . . 133 . . . . . 24 88 79 . 15 . . . . . . 255 . 208 . . . . . 589 1038 Reduced by Siege Mode 1391 | . . . . . . . . . . . 68 69 4 . 43 48 96 . . . . . . 13 377 54 . 280 . 16 323 Redirected to Shielding 242 | . . . . . . . . . . . . . . . 24 . . . . . . . . 32 . . . . . . 186 Ignored by Resistances 10075 | . . . . . . . . . . . . . . . 25 95 675 . . 172 230 315 15 41 284 124 . 5304 . 728 2067 Regen/Repaired (Parts) 1571 | . 324 . . 11 . . . . . . . . . 1046 . . . . . 7 . . . . . . . . . . 183 Core Remaining (%) 64 | 100 . 51 . 33 72 . . . . 93 . . . . . 71 . . . . 57 . . . . . . 39 . . . Volleys Fired 1534 | 12 65 13 135 101 177 . . 3 . . 32 32 27 . 74 24 98 11 4 18 27 67 39 39 84 56 9 204 19 53 111 Largest 3 | 2 2 2 2 2 2 . . 1 . . 2 2 2 . 2 2 2 2 2 2 2 2 2 2 2 2 2 2 3 3 3 Hottest 175 | 70 136 130 136 136 136 . . 39 . . 149 118 154 . 175 50 116 50 50 50 50 160 50 50 160 50 50 68 75 75 160 Shots Fired 2771 | 24 133 26 263 186 350 . . 3 . . 58 49 31 . 132 48 159 18 8 33 52 105 72 70 134 94 19 327 26 114 237 Gun 468 | 24 79 26 150 70 55 . . . . . 22 22 16 . . . 4 . . . . . . . . . . . . . . Cannon 2230 | . 54 . 106 114 290 . . . . . 36 27 14 . 121 48 154 17 8 33 52 101 72 70 127 94 19 309 26 114 224 Launcher 57 | . . . 7 2 5 . . 3 . . . . 1 . . . 1 1 . . . 1 . . 5 . . 18 . . 13 Special 16 | . . . . . . . . . . . . . . . 11 . . . . . . 3 . . 2 . . . . . . Kinetic 327 | 12 32 . 149 70 . . . . . . 18 17 16 . . . 13 . . . . . . . . . . . . . . Thermal 2313 | 12 101 26 106 114 329 . . . . . 31 32 12 . 111 48 126 17 8 33 52 101 72 70 127 94 19 309 26 113 224 Explosive 43 | . . . 7 2 5 . . 3 . . . . 1 . 11 . . 1 . . . 4 . . 7 . . . . . 2 Electromagnetic 88 | . . . 1 . 16 . . . . . 9 . 2 . 10 . 20 . . . . . . . . . . 18 . 1 11 Robot Hit Streak 49 | 8 12 9 16 18 11 . . . . . 19 16 9 . 15 19 14 8 5 7 12 14 19 28 17 40 5 34 7 26 49 Robot Miss Streak 9 | 2 5 9 4 5 5 . . . . . 2 1 1 . 6 1 2 1 . 2 2 3 1 3 2 3 1 4 1 1 4 Penetration Max 1 | . . . . . . . . . . . 1 . . . . . . . . . . . . . . . . . . . . Secondary Targets 1 | . 1 . . . . . . . . . . . . . . . . . . . . . . . . . . . . . . Max Gunslinging Chain 1 | . 1 . . . . . . . . . . . . . . . . . . . . . . . . . . . . . . Shots Hit Robots 1783 | 17 75 22 168 110 217 14 1 4 1 . 51 27 25 . 79 33 110 10 5 16 34 51 53 49 100 54 5 224 9 63 156 Core Hits 909 | 5 46 38 71 36 91 5 1 3 . . 22 11 13 . 73 7 42 7 4 4 16 28 12 19 90 24 4 105 3 33 96 Critical Kills 14 | 1 . . 1 3 4 . . . . . 3 . 2 . . . . . . . . . . . . . . . . . . Critical Parts Destroyed 13 | 1 . . 1 . . . . . . . 3 6 2 . . . . . . . . . . . . . . . . . . Critical Strikes 40 | 3 1 . 2 3 8 . . . . . 7 9 4 . 1 . . . . . . 2 . . . . . . . . . Burn 10 | 1 1 . . . 4 . . . . . 1 3 . . . . . . . . . . . . . . . . . . . Meltdown 9 | . . . 1 3 4 . . . . . 1 . . . . . . . . . . . . . . . . . . . . Destroy 18 | 2 . . 1 . . . . . . . 5 6 4 . . . . . . . . . . . . . . . . . . Sever 3 | . . . . . . . . . . . . . . . 1 . . . . . . 2 . . . . . . . . . Melee Attacks 90 | . . 6 6 2 1 32 1 16 1 1 16 . 8 . . . . . . . . . . . . . . . . . . Impact 6 | . . 6 . . . . . . . . . . . . . . . . . . . . . . . . . . . . . Slashing 77 | . . . 6 2 . 30 1 16 . . 14 . 8 . . . . . . . . . . . . . . . . . . Piercing . | . . . . . . . . . . . . . . . . . . . . . . . . . . . . . . . . Sneak Attacks 19 | . . . 1 . 1 9 1 1 1 . 5 . . . . . . . . . . . . . . . . . . . . Combat Hostiles . | . . . . . . . . . . . . . . . . . . . . . . . . . . . . . . . . Follow-up Attacks . | . . . . . . . . . . . . . . . . . . . . . . . . . . . . . . . . Damage Inflicted 76936 | 222 1181 359 3484 2292 4845 676 71 361 . . 1254 515 645 . 6880 1553 5222 668 266 778 1616 3141 2454 2394 8402 2569 191 11748 394 3007 9748 Guns 4377 | 222 587 330 1471 712 549 . . . . . 181 143 83 . . . 99 . . . . . . . . . . . . . . Cannons 54657 | . 594 . 1495 1379 3784 . . . . . 711 372 178 . 2632 1553 4769 465 266 778 1616 2422 2454 2282 4499 2569 191 9560 394 2998 6696 Explosions 15513 | . . . 453 187 495 . . 154 . . . . 199 . 3882 . 312 203 . . . 530 . 99 3796 . . 2168 . . 3035 Melee 1551 | . . . 60 . . 676 71 207 . . 352 . 185 . . . . . . . . . . . . . . . . . . Ramming 197 | . . 29 5 14 17 . . . . . 10 . . . . . 42 . . . . 21 . 13 . . . 20 . 9 17 Kinetic 3363 | 120 204 . 1460 712 . . . . . . 119 71 83 . . . 594 . . . . . . . . . . . . . . Thermal 56076 | 102 977 330 1495 1379 4073 . . . . . 502 444 120 . 2922 1553 3897 465 266 778 1616 2422 2454 2282 4586 2569 191 9560 394 2998 7701 Explosive 10665 | . . . 453 187 495 . . 154 . . . . 199 . 3382 . 74 203 . . . 530 . . 3709 . . . . . 1279 Electromagnetic 4443 | . . . 11 . 260 . . . . . 271 . 58 . 210 . 615 . . . . . . 99 . . . 2168 . . 751 Impact . | . . . . . . . . . . . . . . . . . . . . . . . . . . . . . . . . Slashing 2192 | . . . 60 . . 676 71 207 . . 352 . 185 . 366 . . . . . . 168 . . 107 . . . . . . Piercing . | . . . . . . . . . . . . . . . . . . . . . . . . . . . . . . . . Highest Corruption 37 | . 3 3 5 5 6 1 1 1 1 1 4 4 4 4 4 4 14 14 14 14 4 7 25 25 6 6 7 26 . 4 37 Average Corruption 6 | . 2 3 3 5 4 1 1 1 1 1 1 4 4 3 3 4 9 14 14 5 3 2 20 10 6 6 5 2 . 3 28 Corruption Purged 41 | . . . . . . . . . . . . . . . . . . . . . . 7 3 20 . . 7 . . 4 . Corruption Blocked . | . . . . . . . . . . . . . . . . . . . . . . . . . . . . . . . . Effects 759 | . 42 27 62 51 46 2 . 1 . 1 5 19 25 1 57 31 46 27 31 8 17 19 63 25 43 15 19 22 . 8 46 Message Errors 190 | . 10 6 16 10 14 . . 1 . . . 5 6 1 15 9 10 12 10 2 6 3 10 6 10 6 7 1 . 2 12 Matter Fused 170 | . 6 5 13 12 10 2 . . . . 1 4 6 . 16 13 10 6 9 1 2 6 15 8 7 2 1 6 . 2 7 Heat Flow Errors 88 | . 5 3 9 8 2 . . . . 1 2 1 1 . 6 3 8 . 3 . 1 2 11 5 6 2 3 3 . . 3 Energy Discharges 92 | . 5 6 7 5 8 . . . . . . 3 3 . 6 2 8 3 3 1 6 1 8 3 4 1 2 3 . . 4 Parts Rejected 10 | . . . . . 1 . . . . . . . . . . . . 1 . 1 . . 2 . 1 . . 2 . 1 1 Parts Fused 10 | . 2 . 1 . 1 . . . . . . . 1 . 2 . . . . . . . 2 . . . . . . . 1 Data Loss (minor) 89 | . 7 1 6 8 5 . . . . . 1 3 5 . 1 3 7 1 4 2 1 4 8 1 10 3 . 2 . 1 5 Data Loss (major) 32 | . 3 3 4 1 2 . . . . . . 1 3 . 3 1 2 1 . 1 . 1 1 . 1 . 2 1 . 1 . Misfires 26 | . 3 1 2 3 2 . . . . . . 1 . . 5 . . 1 2 . 1 1 . . 2 . 1 1 . . . Alerts 21 | . 1 1 2 2 . . . . . . . . . . 1 . 1 1 . . . . 1 2 2 . 3 1 . 1 2 Misdirections 5 | . . . . . . . . . . . . . . . . . . . . . . . 2 . . . . . . . 3 Weapon Failures 26 | . . 1 2 2 1 . . . . . 1 1 . . 2 . . 1 . . . 1 3 . . 1 . 2 . . 8 Overload Shots . | . . . . . . . . . . . . . . . . . . . . . . . . . . . . . . . . Overflow Damage 2956 | . 14 . 41 36 59 183 . 72 . . 57 . 39 . 346 153 188 . . 4 38 220 . 87 296 4 . 361 46 110 602 Projectiles 2106 | . 14 . . 16 41 . . . . . 14 . . . 233 153 183 . . 4 38 215 . 80 128 4 . 358 46 110 469 Explosions 519 | . . . 21 20 18 . . . . . . . 26 . 113 . 5 . . . . 5 . 7 168 . . 3 . . 133 Melee 331 | . . . 20 . . 183 . 72 . . 43 . 13 . . . . . . . . . . . . . . . . . . Knockbacks 6 | . . . . . . . . . . . . . . . . . 6 . . . . . . . . . . . . . . Impact . | . . . . . . . . . . . . . . . . . . . . . . . . . . . . . . . . Kinetic 4 | . . . . . . . . . . . . . . . . . 4 . . . . . . . . . . . . . . Secondary 2 | . . . . . . . . . . . . . . . . . 2 . . . . . . . . . . . . . . Self-Inflicted Damage 1087 | . . . 23 . . . . . . . . . 27 . . . 6 . . 64 . . . . 83 . . 126 . . 758 Shots 37 | . . . 1 . . . . . . . . . 1 . . . 1 . . 1 . . . . 1 . . 11 . . 21 Rammed 18 | . . 7 2 1 1 . . . . . 2 . . . . . . . . . . . . 1 . . . 3 . 1 . Targets Rammed 28 | . 1 7 2 2 1 . . . . . 2 . . . . . 4 . . . . 2 . 1 . . . 3 . 1 2 Kicked 8 | . . . . . . . . . . . . . . . . . 4 . . . . 2 . . . . . . . . 2 Crushed 2 | . 1 . . 1 . . . . . . . . . . . . . . . . . . . . . . . . . . . Highest Temperature 410 | 45 410 252 276 267 294 22 24 41 14 200 179 94 84 . 210 296 237 . 211 7 199 245 272 244 378 257 245 300 . . 240 Average Temperature 69 | 18 76 55 52 66 85 8 10 11 6 59 49 20 34 . 92 98 62 . 94 5 56 132 88 72 110 135 77 68 . . 70 Received Heat Transfer 5939 | . 126 90 420 291 608 18 . . . 63 321 250 111 . 213 75 483 45 12 114 187 39 . 87 731 18 . 1087 . 75 475 Effects 5 | . 3 . . . . . . . . . . . . . . . . . . . . . . . 2 . . . . . . Shutdowns 1 | . 1 . . . . . . . . . . . . . . . . . . . . . . . . . . . . . . Interference 4 | . 2 . . . . . . . . . . . . . . . . . . . . . . . 2 . . . . . . Siege Activations 64 | . . . . . . . . . . . 3 2 1 . 6 3 6 . . . . . . 3 8 1 . 13 1 6 11 Total Turns 1199 | . . . . . . . . . . . 43 48 11 . 91 52 73 . . . . . . 34 123 29 . 378 2 103 212 Longest Duration 72 | . . . . . . . . . . . 33 40 11 . 28 31 25 . . . . . . 30 33 29 . 72 2 59 49 Robots Corrupted 15 | . . . . . . . . . . . 1 . . . 2 . 2 . . . . . . . . . . 10 . . . Combat Hostiles 15 | . . . . . . . . . . . 1 . . . 2 . 2 . . . . . . . . . . 10 . . . Parts Fried 30 | . . . . . 1 . . . . . 2 . . . . . 6 . . . . . . . 1 . . 19 . . 1 Impact Corruptions . | . . . . . . . . . . . . . . . . . . . . . . . . . . . . . . . . Robots Melted 14 | . . . 1 3 5 . . . . . 1 1 . . . . 1 . . . . . . . . . . . . . 2 Combat Hostiles 12 | . . . 1 2 4 . . . . . 1 1 . . . . 1 . . . . . . . . . . . . . 2 Parts Melted 72 | . 1 . 6 3 19 . . . . . 5 1 . . 5 1 7 . . 4 2 1 . 1 1 . . 8 . 1 6 Heat Transferred 44831 | 370 1986 415 2590 2442 7555 . . . . . 1050 944 148 . 2552 825 2925 250 125 387 875 1275 1350 1225 2805 1400 125 5057 225 1575 4355 Parts Sabotaged 4 | . . . . . . . . . . . . . . . . . . . . . . . . . 3 . . 1 . . . Parts Stolen . | . . . . . . . . . . . . . . . . . . . . . . . . . . . . . . . . Parts Stripped . | . . . . . . . . . . . . . . . . . . . . . . . . . . . . . . . . Power Chain Reactions 10 | . . . . . . . . . . . . . . . 1 . . . . . . . . . . . . 2 . . 7 Alert | -11 -10 -10 -9 -9 -8 -7 -7 -7 -7 -6 -6 -6 -6 -6 -6 -5 -5 -5 -5 -5 -4 -4 -4 -4 -4 -4 -4 -4 -3 -3 -3 ------- Run | Yrd Mat Min Mat Sto Mat Fac Low Low Dat Pro Fac Low Low Zio Dee Pro Fac Upp Upp War Pro Fac Was Fac Ext Cet Arc Hub Res Qua Sec Peak Influence 1633 | 20 303 65 698 449 931 536 . . . . 173 . . . . . 553 . . . . 397 113 309 766 559 173 1633 868 316 524 Initial 857 | . 13 6 . 272 66 322 . . . . 37 . . . . . . . . . . . 105 . 88 388 147 . 857 96 40 Average 256 | 11 116 14 332 226 438 431 . . . . 80 . . . . . 302 . . . . 140 34 92 343 432 58 587 723 128 220 Maximum Alert Level 5 | . 1 . 2 2 3 2 . . . . . . . . . . 2 . . . . 1 . 1 3 2 . 5 3 1 2 Low Security (%) 57 | 100 80 100 37 47 36 . . . . . 100 . . . . . 32 . . . . 71 100 93 46 . 100 27 1 82 50 Level 1 17 | . 19 . 16 42 8 22 . . . . . . . . . . 26 . . . . 28 . 6 4 37 . 12 14 17 44 Level 2 17 | . . . 46 9 23 77 . . . . . . . . . . 41 . . . . . . . 47 62 . 21 12 . 5 Level 3 6 | . . . . . 31 . . . . . . . . . . . . . . . . . . . 2 . . 18 72 . . Level 4 1 | . . . . . . . . . . . . . . . . . . . . . . . . . . . . 19 . . . Level 5 . | . . . . . . . . . . . . . . . . . . . . . . . . . . . . . . . . High Security . | . . . . . . . . . . . . . . . . . . . . . . . . . . . . . . . . Max Security . | . . . . . . . . . . . . . . . . . . . . . . . . . . . . . . . . Squads Dispatched 96 | . 5 . 11 3 11 3 . . . . 4 . . . . . 8 . . . . 8 . 4 5 . . 12 5 4 13 Investigation 19 | . 3 . 7 1 2 1 . . . . 1 . . . . . . . . . . 1 . . . . . . 3 . . Extermination 25 | . . . . . . 1 . . . . 2 . . . . . 3 . . . . 3 . 2 . . . 3 . 4 7 Reinforcement 30 | . 2 . 3 2 2 1 . . . . 1 . . . . . 4 . . . . 1 . 2 3 . . 5 2 . 2 Assault 10 | . . . 1 . 1 . . . . . . . . . . . 1 . . . . . . . 2 . . 4 . . 1 Garrison 12 | . . . . . 6 . . . . . . . . . . . . . . . . 3 . . . . . . . . 3 Intercept . | . . . . . . . . . . . . . . . . . . . . . . . . . . . . . . . . Searches Triggered . | . . . . . . . . . . . . . . . . . . . . . . . . . . . . . . . . Data Miner Redirects 4 | . . . . . . . . . . . . . . . . . . . . . . . . . 1 . . 2 . . 1 Construction Impeded 6 | . . . . 1 1 . . . . . . . . . . . . . . . . . . 1 3 . . . . . . Haulers Reinforced 4 | . . . . . . . . . . . . . . . . . 2 . . . . . . . . . . 1 1 . . Active Scanning Responses . | . . . . . . . . . . . . . . . . . . . . . . . . . . . . . . . . Cargo Convoy Interrupts 1 | . . . . . . . . . . . . . . . . . 1 . . . . . . . . . . . . . . Stealth | -11 -10 -10 -9 -9 -8 -7 -7 -7 -7 -6 -6 -6 -6 -6 -6 -5 -5 -5 -5 -5 -4 -4 -4 -4 -4 -4 -4 -4 -3 -3 -3 --------- Run | Yrd Mat Min Mat Sto Mat Fac Low Low Dat Pro Fac Low Low Zio Dee Pro Fac Upp Upp War Pro Fac Was Fac Ext Cet Arc Hub Res Qua Sec Distress Signals 33 | . 2 1 4 . 6 . . . . . 2 . . . . . 1 . . 1 . 2 . 1 3 3 . 2 5 . . Communications Jammed 193 | . . . . . . . . . . . . . . . . . 42 . . . . . . . . . . 100 . 1 50 Distress Signals 180 | . . . . . . . . . . . . . . . . . 34 . . . . . . . . . . 96 . . 50 Times Spotted 614 | . 27 5 52 27 56 23 2 . . 6 15 6 5 . 55 3 33 7 1 38 10 21 6 14 46 8 . 72 7 18 51 Peak Tracking Total 37 | . 5 2 3 5 5 7 3 1 . 6 4 4 3 . 37 1 4 4 1 10 5 5 5 3 9 5 . 9 2 4 10 Tactical Retreats 40 | . 1 1 . . 5 7 . . . 2 2 . . . . . 3 . . 1 1 2 . . 3 . . 4 1 2 5 Traps | -11 -10 -10 -9 -9 -8 -7 -7 -7 -7 -6 -6 -6 -6 -6 -6 -5 -5 -5 -5 -5 -4 -4 -4 -4 -4 -4 -4 -4 -3 -3 -3 ------- Run | Yrd Mat Min Mat Sto Mat Fac Low Low Dat Pro Fac Low Low Zio Dee Pro Fac Upp Upp War Pro Fac Was Fac Ext Cet Arc Hub Res Qua Sec Traps Triggered 15 | . 3 . 4 . 1 . . . . . . . . . . . 2 . . . . 2 . . 1 . . 1 . 1 . Indirectly 1 | . . . . . . . . . . . . . . . . . . . . . . . . . . . . 1 . . . Trap Hack Attempts 16 | . . . . 15 . 1 . . . . . . . . . . . . . . . . . . . . . . . . . Triggered . | . . . . . . . . . . . . . . . . . . . . . . . . . . . . . . . . Disarmed . | . . . . . . . . . . . . . . . . . . . . . . . . . . . . . . . . Reprogrammed 3 | . . . . 2 . 1 . . . . . . . . . . . . . . . . . . . . . . . . . Reused 1 | . . . . 1 . . . . . . . . . . . . . . . . . . . . . . . . . . . Traps Extracted . | . . . . . . . . . . . . . . . . . . . . . . . . . . . . . . . . Installed . | . . . . . . . . . . . . . . . . . . . . . . . . . . . . . . . . Triggered 22 | . . . . 1 . . . . . . . . . . . 1 2 . . 18 . . . . . . . . . . . Machines | -11 -10 -10 -9 -9 -8 -7 -7 -7 -7 -6 -6 -6 -6 -6 -6 -5 -5 -5 -5 -5 -4 -4 -4 -4 -4 -4 -4 -4 -3 -3 -3 ---------- Run | Yrd Mat Min Mat Sto Mat Fac Low Low Dat Pro Fac Low Low Zio Dee Pro Fac Upp Upp War Pro Fac Was Fac Ext Cet Arc Hub Res Qua Sec Machines Disabled 68 | . 2 . 9 3 1 . . . . . . 1 1 . 4 . 7 . . 1 . 4 . 3 8 1 1 13 . 2 7 Max in Single Turn 5 | . 1 . 1 1 1 . . . . . . 1 1 . 1 . 5 . . 1 . 2 . 3 2 1 1 5 . 1 1 Garrison Access 2 | . . . . . . 2 . . . . . . . . . . . . . . . . . . . . . . . . . Network Hub 3 | . . . . . . . . . . . . . . . . . . . . . . . . . . . . 3 . . . Energy Cycler 2 | . . . . . . . . . . . . . . . . . . . . . . . . . 2 . . . . . . Machines Repaired . | . . . . . . . . . . . . . . . . . . . . . . . . . . . . . . . . Machines Dismantled . | . . . . . . . . . . . . . . . . . . . . . . . . . . . . . . . . Machines Sabotaged . | . . . . . . . . . . . . . . . . . . . . . . . . . . . . . . . . Overloaded Fab Kills . | . . . . . . . . . . . . . . . . . . . . . . . . . . . . . . . . Hacking | -11 -10 -10 -9 -9 -8 -7 -7 -7 -7 -6 -6 -6 -6 -6 -6 -5 -5 -5 -5 -5 -4 -4 -4 -4 -4 -4 -4 -4 -3 -3 -3 --------- Run | Yrd Mat Min Mat Sto Mat Fac Low Low Dat Pro Fac Low Low Zio Dee Pro Fac Upp Upp War Pro Fac Was Fac Ext Cet Arc Hub Res Qua Sec Machines Accessed 108 | . 8 1 14 14 12 17 . 1 4 . 7 . . . . . 6 1 . . . 4 . 1 1 1 . 3 1 9 3 Terminals 68 | . 5 . 9 11 9 9 . . . . 4 . . . . . 2 . . . . 2 . . 1 1 . 3 1 8 3 Fabricators 3 | . . . . . . 1 . . . . 1 . . . . . 1 . . . . . . . . . . . . . . Repair Stations 6 | . 1 . 2 1 . 1 . . . . . . . . . . . . . . . . . 1 . . . . . . . Recycling Units 14 | . 2 . 2 2 1 4 . . . . 1 . . . . . 1 . . . . 1 . . . . . . . . . Scanalyzers 7 | . . . 1 . 2 . . . . . 1 . . . . . 2 . . . . . . . . . . . . 1 . Garrison Access 3 | . . . . . . 2 . . . . . . . . . . . . . . . 1 . . . . . . . . . Total Hacks 380 | . 29 1 47 39 44 44 . 1 33 . 24 . . . . . 17 1 . . . 11 . 2 2 1 . 13 11 47 13 Successful 219 | . 19 1 23 24 25 21 . 1 33 . 15 . . . . . 8 1 . . . 4 . . 2 1 . 6 7 24 4 Failed 160 | . 10 . 23 15 19 23 . . . . 9 . . . . . 9 . . . . 7 . 2 . . . 7 4 23 9 Catastrophic 23 | . . . 2 . 3 3 . . . . 1 . . . . . 2 . . . . 2 . . . . . 2 1 5 2 Database Lockouts 1 | . . . 1 . . . . . . . . . . . . . . . . . . . . . . . . . . . . Manual 180 | . 17 . 31 11 26 23 . . . . 7 . . 4 . . 11 . . 1 . 10 . . 2 . . 8 6 16 7 Terminals 235 | . 16 . 31 31 35 25 . . . . 11 . . . . . 8 . . . . 7 . . 2 1 . 13 11 31 13 Fabricators 12 | . . . . . . 2 . . . . 8 . . . . . 2 . . . . . . . . . . . . . . Repair Stations 23 | . 8 . 7 5 . 1 . . . . . . . . . . . . . . . . . 2 . . . . . . . Recycling Units 36 | . 5 . 7 3 2 13 . . . . 1 . . . . . 2 . . . . 3 . . . . . . . . . Scanalyzers 34 | . . . 2 . 7 . . . . . 4 . . . . . 5 . . . . . . . . . . . . 16 . Garrison Access 4 | . . . . . . 3 . . . . . . . . . . . . . . . 1 . . . . . . . . . Terminal Hacks 103 | . 3 1 6 14 10 5 . 1 33 . 3 . . . . . . 1 . . . . . . 1 1 . 6 7 9 2 Record 13 | . 1 . . . . . . . 11 . . . . . . . . . . . . . . . . 1 . . . . . Part Schematic 16 | . . . 1 . 1 1 . . 13 . . . . . . . . . . . . . . . . . . . . . . Robot Schematic 6 | . . . . . . . . . 6 . . . . . . . . . . . . . . . . . . . . . . Robot Analysis 2 | . 1 . . 1 . . . . . . . . . . . . . . . . . . . . . . . . . . . Prototype ID Bank 11 | . . . 1 1 3 1 . . 3 . . . . . . . . . . . . . . . . . . 1 . 1 . Open Door 8 | . . 1 . 5 . . . 1 . . . . . . . . . 1 . . . . . . . . . . . . . Open DSF 1 | . . . . . . . . . . . 1 . . . . . . . . . . . . . . . . . . . . Level Access Points 1 | . . . . . . . . . . . . . . . . . . . . . . . . . . . . 1 . . . Branch Access Points 2 | . . . . . . 1 . . . . . . . . . . . . . . . . . . . . . . 1 . . Emergency Access Points 4 | . . . . 1 . . . . . . . . . . . . . . . . . . . . . . . 1 . 2 . Terminal Index 6 | . 1 . 1 1 1 1 . . . . . . . . . . . . . . . . . . . . . 1 . . . Alert Level 8 | . . . 1 1 1 . . . . . 1 . . . . . . . . . . . . . . . . . 1 2 1 Unreport Threat 11 | . . . 1 1 2 . . . . . . . . . . . . . . . . . . . 1 . . 1 3 1 1 Locate Traps 4 | . . . 1 1 . . . . . . . . . . . . . . . . . . . . . . . . 1 1 . Recall Investigation 2 | . . . . 1 1 . . . . . . . . . . . . . . . . . . . . . . . . . . Hauler Manifests 3 | . . . . . . . . . . . 1 . . . . . . . . . . . . . . . . . 1 1 . Zone Layout 5 | . . . . 1 1 1 . . . . . . . . . . . . . . . . . . . . . 1 . 1 . Fabricator Hacks 8 | . . . . . . 1 . . . . 5 . . . . . 2 . . . . . . . . . . . . . . Network Status 2 | . . . . . . 1 . . . . 1 . . . . . . . . . . . . . . . . . . . . Load Schematic 3 | . . . . . . . . . . . 2 . . . . . 1 . . . . . . . . . . . . . . Build 3 | . . . . . . . . . . . 2 . . . . . 1 . . . . . . . . . . . . . . Repair Station Hacks 10 | . 6 . 2 2 . . . . . . . . . . . . . . . . . . . . . . . . . . . Scan Component 6 | . 3 . 2 1 . . . . . . . . . . . . . . . . . . . . . . . . . . . Repair 4 | . 3 . . 1 . . . . . . . . . . . . . . . . . . . . . . . . . . . Recycling Unit Hacks 5 | . 2 . 1 1 . 1 . . . . . . . . . . . . . . . . . . . . . . . . . Retrieve Components 5 | . 2 . 1 1 . 1 . . . . . . . . . . . . . . . . . . . . . . . . . Scanalyzer 19 | . . . 2 . 5 . . . . . 2 . . . . . 3 . . . . . . . . . . . . 7 . Insert Component 11 | . . . 1 . 3 . . . . . 1 . . . . . 2 . . . . . . . . . . . . 4 . Analyze 8 | . . . 1 . 2 . . . . . 1 . . . . . 1 . . . . . . . . . . . . 3 . Garrison Access Hacks 2 | . . . . . . 2 . . . . . . . . . . . . . . . . . . . . . . . . . Seal Access 2 | . . . . . . 2 . . . . . . . . . . . . . . . . . . . . . . . . . Unauthorized Hacks 72 | . 8 . 12 7 10 12 . . . . 5 . . . . . 3 . . . . 4 . . 1 . . . . 8 2 Terminals 57 | . 6 . 10 6 9 8 . . . . 4 . . . . . 2 . . . . 2 . . 1 . . . . 7 2 Assimilate 2 | . . . . . 1 . . . . . . . . . . . . . . . . . . . . . . . . . 1 Botnet 12 | . 1 . 1 1 1 1 . . . . 1 . . . . . 1 . . . . 1 . . 1 . . . . 2 1 Operators 4 | . . . 1 . 2 1 . . . . . . . . . . . . . . . . . . . . . . . . . Skim 39 | . 5 . 8 5 5 6 . . . . 3 . . . . . 1 . . . . 1 . . . . . . . 5 . Fabricators 1 | . . . . . . . . . . . 1 . . . . . . . . . . . . . . . . . . . . Recompile 1 | . . . . . . . . . . . 1 . . . . . . . . . . . . . . . . . . . . Repair Stations . | . . . . . . . . . . . . . . . . . . . . . . . . . . . . . . . . Recycling Units 13 | . 2 . 2 1 1 4 . . . . . . . . . . 1 . . . . 2 . . . . . . . . . Reject 3 | . . . . . 1 1 . . . . . . . . . . . . . . . 1 . . . . . . . . . Recyclers 1 | . . . . . . 1 . . . . . . . . . . . . . . . . . . . . . . . . . Mask 5 | . . . . 1 . 2 . . . . . . . . . . 1 . . . . 1 . . . . . . . . . Tunnel 4 | . 2 . 2 . . . . . . . . . . . . . . . . . . . . . . . . . . . . Scanalyzers 1 | . . . . . . . . . . . . . . . . . . . . . . . . . . . . . . 1 . Researchers 1 | . . . . . . . . . . . . . . . . . . . . . . . . . . . . . . 1 . Garrison Access . | . . . . . . . . . . . . . . . . . . . . . . . . . . . . . . . . Data Cores Recovered 2 | . . . . . 1 . . . . . . . . . . . . . . . . . . . . . . . . 1 . Used . | . . . . . . . . . . . . . . . . . . . . . . . . . . . . . . . . Hacking Detections 84 | . 5 . 13 9 10 16 . . . . 5 . . . . . 4 . . . . 4 . 1 1 1 . 3 1 8 3 Full Trace Events 7 | . . . 3 1 2 1 . . . . . . . . . . . . . . . . . . . . . . . . . Feedback Events . | . . . . . . . . . . . . . . . . . . . . . . . . . . . . . . . . Feedback Blocked . | . . . . . . . . . . . . . . . . . . . . . . . . . . . . . . . . Robot Schematics Acquired 6 | . . . . . . . . . 6 . . . . . . . . . . . . . . . . . . . . . . Robots Built . | . . . . . . . . . . . . . . . . . . . . . . . . . . . . . . . . Authchips . | . . . . . . . . . . . . . . . . . . . . . . . . . . . . . . . . Time . | . . . . . . . . . . . . . . . . . . . . . . . . . . . . . . . . Total Robot Build Rating . | . . . . . . . . . . . . . . . . . . . . . . . . . . . . . . . . Part Schematics Acquired 23 | . . . 2 . 3 1 . . 13 . 1 . . . . . 1 . . . . . . . . . . . . 2 . Parts Built 4 | . . . . . . . . . . . 2 . . . . . 2 . . . . . . . . . . . . . . Authchips 2 | . . . . . . . . . . . 1 . . . . . 1 . . . . . . . . . . . . . . Time 344 | . . . . . . . . . . . 286 . . . . . 58 . . . . . . . . . . . . . . Total Part Build Rating 27 | . . . . . . . . . . . 13 . . . . . 14 . . . . . . . . . . . . . . Parts Repaired 4 | . 3 . . 1 . . . . . . . . . . . . . . . . . . . . . . . . . . . Time 239 | . 103 . . 136 . . . . . . . . . . . . . . . . . . . . . . . . . . . Parts Recycled . | . . . . . . . . . . . . . . . . . . . . . . . . . . . . . . . . Recycled Matter . | . . . . . . . . . . . . . . . . . . . . . . . . . . . . . . . . Retrieved Matter . | . . . . . . . . . . . . . . . . . . . . . . . . . . . . . . . . Retrieved Components 34 | . 10 . 10 10 . 4 . . . . . . . . . . . . . . . . . . . . . . . . . Parts Scanalyzed 8 | . . . 1 . 2 . . . . . 1 . . . . . 1 . . . . . . . . . . . . 3 . Part Schematics Acquired 7 | . . . 1 . 2 . . . . . 1 . . . . . 1 . . . . . . . . . . . . 2 . Parts Damaged 3 | . . . 1 . . . . . . . 1 . . . . . 1 . . . . . . . . . . . . . . Bothacking | -11 -10 -10 -9 -9 -8 -7 -7 -7 -7 -6 -6 -6 -6 -6 -6 -5 -5 -5 -5 -5 -4 -4 -4 -4 -4 -4 -4 -4 -3 -3 -3 ------------ Run | Yrd Mat Min Mat Sto Mat Fac Low Low Dat Pro Fac Low Low Zio Dee Pro Fac Upp Upp War Pro Fac Was Fac Ext Cet Arc Hub Res Qua Sec Used RIF Installer . | . . . . . . . . . . . . . . . . . . . . . . . . . . . . . . . . Robots Hacked 6 | . . . . . 1 2 . . 1 . 2 . . . . . . . . . . . . . . . . . . . . Non-combat 5 | . . . . . 1 2 . . . . 2 . . . . . . . . . . . . . . . . . . . . Combat 1 | . . . . . . . . . 1 . . . . . . . . . . . . . . . . . . . . . . Robot Hacks Applied 6 | . . . . . 1 2 . . 1 . 2 . . . . . . . . . . . . . . . . . . . . parse_system 1 | . . . . . . . . . 1 . . . . . . . . . . . . . . . . . . . . . . find_chute 3 | . . . . . . 2 . . . . 1 . . . . . . . . . . . . . . . . . . . . find_recycling 2 | . . . . . 1 . . . . . 1 . . . . . . . . . . . . . . . . . . . . Relay Couplers Released . | . . . . . . . . . . . . . . . . . . . . . . . . . . . . . . . . Fabnet Peak Effective % . | . . . . . . . . . . . . . . . . . . . . . . . . . . . . . . . . Robots Rewired 7 | . . . . . . . . . . . . . 4 . . . . . . . . . . . 3 . . . . . . Allies Hacked . | . . . . . . . . . . . . . . . . . . . . . . . . . . . . . . . . Hacks Repelled . | . . . . . . . . . . . . . . . . . . . . . . . . . . . . . . . . Allies | -11 -10 -10 -9 -9 -8 -7 -7 -7 -7 -6 -6 -6 -6 -6 -6 -5 -5 -5 -5 -5 -4 -4 -4 -4 -4 -4 -4 -4 -3 -3 -3 -------- Run | Yrd Mat Min Mat Sto Mat Fac Low Low Dat Pro Fac Low Low Zio Dee Pro Fac Upp Upp War Pro Fac Was Fac Ext Cet Arc Hub Res Qua Sec Total Allies 15 | . . 3 . . . . . . . . . . 4 . . . . . . . . . . . 7 . . . . . 1 Largest Group 4 | . . 3 3 . . . . . . . . . 4 4 4 . . . . . . . . . 4 3 . . . . 1 Highest-Rated Group 167 | . . 40 40 . . . . . . . . . 80 80 80 . . . . . . . . . 167 121 . . . . 10 Highest-Rated Ally 51 | . . 16 16 . . . . . . . . . 20 20 20 . . . . . . . . . 51 51 . . . . 10 Total Orders 17 | . . . . 1 . . . . . . . . . . 6 . 7 2 1 . . . . . . . . . . . . STAY 3 | . . . . . . . . . . . . . . . 3 . . . . . . . . . . . . . . . . EXPLORE 1 | . . . . 1 . . . . . . . . . . . . . . . . . . . . . . . . . . . RETURN 13 | . . . . . . . . . . . . . . . 3 . 7 2 1 . . . . . . . . . . . . Ally Attacks 162 | . . . 24 . . . . . . . . . . . 50 . 28 14 2 . . . . . 38 6 . . . . . Total Damage 2520 | . . . 259 . . . . . . . . . . . 697 . 506 245 46 . . . . . 589 178 . . . . . Kills 14 | . . . 2 . . . . . . . . . . . 6 . 2 2 . . . . . . 2 . . . . . . Allies Corrupted 1 | . . . . . . . . . . . . . . . . . . . . . . . . . 1 . . . . . . Allies Melted 1 | . . . . . . . . . . . . . . . . . . . . 1 . . . . . . . . . . . Intel | -11 -10 -10 -9 -9 -8 -7 -7 -7 -7 -6 -6 -6 -6 -6 -6 -5 -5 -5 -5 -5 -4 -4 -4 -4 -4 -4 -4 -4 -3 -3 -3 ------- Run | Yrd Mat Min Mat Sto Mat Fac Low Low Dat Pro Fac Low Low Zio Dee Pro Fac Upp Upp War Pro Fac Was Fac Ext Cet Arc Hub Res Qua Sec Robot Analysis Total 2 | . 1 . . 1 . . . . . . . . . . . . . . . . . . . . . . . . . . . Derelict Logs Recovered 8 | . . 2 . . . . 1 1 . . . 1 . 1 . . . . 1 . 1 . . . . . . . . . . Drone Launches 32 | . . . . 14 . . . . . . . . . . 5 . 9 3 1 . . . . . . . . . . . . Drone Recoveries 17 | . . . . . . . . . . . . . . . 5 . 9 2 1 . . . . . . . . . . . . Exploration | -11 -10 -10 -9 -9 -8 -7 -7 -7 -7 -6 -6 -6 -6 -6 -6 -5 -5 -5 -5 -5 -4 -4 -4 -4 -4 -4 -4 -4 -3 -3 -3 ------------- Run | Yrd Mat Min Mat Sto Mat Fac Low Low Dat Pro Fac Low Low Zio Dee Pro Fac Upp Upp War Pro Fac Was Fac Ext Cet Arc Hub Res Qua Sec Turns Passed 44743 | 150 2393 1644 3236 2136 2689 626 73 302 26 74 1198 852 994 1733 4854 1653 1992 667 762 1151 1322 1295 1293 873 1753 550 1077 1975 815 2210 2375 Spaces Moved 19327 | 71 681 629 1522 746 839 1640 225 568 90 235 949 414 494 1022 2211 779 636 338 410 576 370 464 449 289 577 167 75 493 278 588 502 Core 27 | 14 . . . . . . . . . . . . . . . . . . . . . . . . . . 13 . . . . Treads 9644 | 57 681 629 1434 746 839 . . . . . 187 414 494 1022 1345 87 . . . . . . 41 62 136 . . 141 264 587 478 Legs 6267 | . . . 88 . . . . . . . 153 . . . 866 692 636 338 410 576 370 464 408 227 441 167 62 352 14 1 2 Wheels . | . . . . . . . . . . . . . . . . . . . . . . . . . . . . . . . . Hover . | . . . . . . . . . . . . . . . . . . . . . . . . . . . . . . . . Flight 3367 | . . . . . . 1640 225 568 90 235 609 . . . . . . . . . . . . . . . . . . . . Fastest Speed 28 | 50 160 240 160 160 160 28 28 28 28 28 28 165 165 165 165 189 183 183 183 118 170 130 210 210 183 210 183 210 170 250 152 Average Speed 174 | 138 211 240 173 229 230 28 28 28 28 28 95 165 165 165 177 198 210 183 183 178 174 205 251 241 242 224 723 237 249 250 247 Slowest Speed 3100 | 160 240 240 470 240 245 28 101 28 28 28 270 165 165 165 270 270 325 183 183 222 175 240 330 330 560 226 3100 392 410 330 330 Overloaded Moves . | . . . . . . . . . . . . . . . . . . . . . . . . . . . . . . . . Propulsion Burnouts . | . . . . . . . . . . . . . . . . . . . . . . . . . . . . . . . . Robots Hopped 5 | . . . . . . 4 . 1 . . . . . . . . . . . . . . . . . . . . . . . Cave-ins Triggered 3 | . . . . . . . . . . . . . . . . . . . . . . 2 . . . . 1 . . . . Spacefolds 9 | . . . . . . . . . . . . . . . . . . . . . . . . . . . . . . . 9 Exploration Rate (%) 57 | 4 83 99 93 95 67 37 37 64 75 47 24 57 63 86 88 82 18 56 63 72 58 15 88 7 79 59 47 63 11 77 32 Regions Visited 31 Branch Regions 21 Pre-discovered Areas 12 | . 2 . 4 . 3 . . . 1 . . . . 1 . . . . . . 1 . . . . . . . . . . Known Exits Taken 21 | . . 1 1 1 . 1 1 1 1 1 1 1 1 . . 1 1 1 1 1 1 . . 1 . . . 1 1 1 . Unknown Exits Taken 8 | 1 1 . . . 1 . . . . . . . . 1 1 . . . . . . . . . 1 1 1 . . . . Scrap Searched 19 | . . 1 . . . . 2 2 . 1 . 4 2 3 . 2 . 1 . . 1 . . . . . . . . . . Spaces Dug 241 | . . . 5 14 . 14 . 10 . . 11 11 5 . 4 10 7 3 . 5 3 22 7 5 . 19 2 29 14 20 21 Terrain Destroyed 1536 | . . . 45 26 52 14 . 37 . . 11 15 18 . 68 14 72 13 3 52 17 111 18 18 144 25 10 596 15 38 104 Melee 36 | . . . 5 . . 14 . 10 . . 7 . . . . . . . . . . . . . . . . . . . . Projectile 466 | . . . . 2 5 . . . . . 4 15 8 . 21 14 33 6 3 14 17 41 18 18 19 25 10 82 15 38 58 AOE 1034 | . . . 40 24 47 . . 27 . . . . 10 . 47 . 39 7 . 38 . 70 . . 125 . . 514 . . 46 Terrain Rammed . | . . . . . . . . . . . . . . . . . . . . . . . . . . . . . . . . Walls Destroyed . | . . . . . . . . . . . . . . . . . . . . . . . . . . . . . . . . Machines Disabled . | . . . . . . . . . . . . . . . . . . . . . . . . . . . . . . . . Actions | -11 -10 -10 -9 -9 -8 -7 -7 -7 -7 -6 -6 -6 -6 -6 -6 -5 -5 -5 -5 -5 -4 -4 -4 -4 -4 -4 -4 -4 -3 -3 -3 --------- Run | Yrd Mat Min Mat Sto Mat Fac Low Low Dat Pro Fac Low Low Zio Dee Pro Fac Upp Upp War Pro Fac Was Fac Ext Cet Arc Hub Res Qua Sec Total 27673 | 98 1509 719 1860 980 1257 1763 232 681 90 242 1159 533 626 1070 3035 844 1139 369 416 679 1000 717 547 392 800 253 598 970 389 1240 1466 Wait 4748 | . 703 43 75 32 90 31 3 88 . . 52 68 26 5 566 28 253 12 . 3 585 48 33 31 43 5 485 147 12 525 756 Move 19271 | 70 680 628 1521 745 838 1631 224 565 89 234 948 413 493 1021 2210 778 635 337 409 575 369 462 448 288 576 166 73 492 277 587 489 Hop 5 | . . . . . . 4 . 1 . . . . . . . . . . . . . . . . . . . . . . . Pick Up 355 | 9 32 3 26 10 23 8 . 1 . . 24 3 1 11 37 5 25 . . 10 1 31 1 3 16 4 2 21 27 8 13 Fast Attach 280 | 1 2 3 13 16 31 7 2 2 . 2 22 5 1 3 26 1 15 3 . 19 2 18 6 6 18 1 6 20 4 12 13 Attach 140 | 6 1 . 2 2 5 11 . . . 1 10 3 . 2 13 1 17 . . 5 . 10 . 5 9 2 . 8 4 4 19 Detach 76 | . . . 2 . . 1 . . . 1 11 . . 1 5 . 10 1 1 6 . 5 . 1 3 2 . 7 1 4 14 Swap 314 | . 8 7 32 19 32 10 . 2 . 1 12 3 12 12 23 2 21 1 2 2 2 13 3 7 12 4 3 24 8 12 25 Drop 732 | . 17 9 46 29 59 27 2 3 . 2 30 6 3 15 81 5 51 4 . 41 14 59 17 11 30 13 19 44 37 34 24 Fire 1534 | 12 65 13 135 101 177 . . 3 . . 32 32 27 . 74 24 98 11 4 18 27 67 39 39 84 56 9 204 19 53 111 Melee 90 | . . 6 6 2 1 32 1 16 1 1 16 . 8 . . . . . . . . . . . . . . . . . . Ram . | . . . . . . . . . . . . . . . . . . . . . . . . . . . . . . . . Kick 8 | . . . . . . . . . . . . . . . . . 4 . . . . 2 . . . . . . . . 2 Crush 20 | . 1 7 2 2 1 . . . . . 2 . . . . . . . . . . . . 1 . . . 3 . 1 . Escape Stasis 13 | . . . . . . . . . . . . . . . . . 10 . . . . 2 . . . . 1 . . . . Rewire 64 | . . . . . . . . . . . . . 55 . . . . . . . . . . . 9 . . . . . . Trap 16 | . . . . 15 . 1 . . . . . . . . . . . . . . . . . . . . . . . . . Miscellaneous 7 | . . . . 7 . . . . . . . . . . . . . . . . . . . . . . . . . . . Route ------- -11/Scrapyard -10/Materials (discovered 6 exits: *Mat x3 / *Min x2 / Sub) -10/Mines (discovered 3 exits: *Mat x2 / *Sub) -9/Materials (discovered 7 exits: *Mat x3 / *Min x2 / *Sto x2) -9/Storage (discovered 2 exits: *Mat / *Rec) -8/Materials -7/Factory (discovered 4 exits: *Fac x2 / *Low x2) -7/Lower Caves -7/Lower Caves -7/Data Miner -6/Proximity Caves -6/Factory -6/Lower Caves -6/Lower Caves (discovered 2 exits: *Fac / *Zio) -6/Zion (discovered 2 exits: [*Dee] / [*Pro]) -6/Deep Caves -5/Proximity Caves -5/Factory -5/Upper Caves -5/Upper Caves (discovered 2 exits: *Fac / *War) -5/Warlord -4/Proximity Caves -4/Factory (discovered 2 exits: Res / Ext) -4/Waste -4/Factory -4/Extension (discovered 3 exits: *Res x2 / *Cet) -4/Cetus (discovered 2 exits: *Res / [*Arc]) -4/Archives -4/Hub_04(d) (discovered 4 exits: *Res x4) -3/Research (discovered 3 exits: Arm / *Qua x2) -3/Quarantine -3/Section 7 History --------- Turn | Location | Event 3 | -11/Scrapyard | Discovered new exit (range 16) 151 | -11/Scrapyard | Entered Materials 204 | -10/Materials | Discovered new exit (range 9) 304 | -10/Materials | Build established: Mutant 1182 | -10/Materials | Repaired Lgt. Treads 1210 | -10/Materials | Repaired Lgt. Treads 1262 | -10/Materials | Repaired Adv. Beam Cannon 1327 | -10/Materials | Discovered new exit (range 8) 1665 | -10/Materials | Discovered new exit (range 14) 1968 | -10/Materials | Learned location of 1 exit from Storage 2044 | -10/Materials | Learned Storage garrison access intel 2111 | -10/Materials | Learned location of 1 exit from Storage 2169 | -10/Materials | Identified exit to Materials 2217 | -10/Materials | Identified exit to Subcaves 2255 | -10/Materials | Learned Storage garrison access intel 2284 | -10/Materials | Learned location of 2 exits from Materials 2324 | -10/Materials | Learned 4 Recycling zone layouts 2376 | -10/Materials | Learned Storage trap positions 2440 | -10/Materials | Learned Storage stockpile data 2544 | -10/Materials | Entered Mines 2616 | -10/Mines | Discovered exit to Materials (range 5) 2632 | -10/Mines | Found the Drone Emporium 2643 | -10/Mines | Found Prototype Device 2643 | -10/Mines | Identified Splice Drone Bay 2822 | -10/Mines | Received a Rocket Launcher from a helpful Derelict 2836 | -10/Mines | Discovered exit to Materials (range 5) 2952 | -10/Mines | Excavation squad dispatched 2952 | -10/Mines | A large section of the Mines collapsed 3502 | -10/Mines | Found a damaged Exp. Sensor Array with a note attached 3507 | -10/Mines | Found Prototype Device 4068 | -10/Mines | Assisted by bots powering up and referring to "LRC-V3" 4147 | -10/Mines | Discovered exit to Subcaves (range 6) 4188 | -10/Mines | Entered Materials 4188 | -9/Materials | Accompanied by 3 allies 4188 | -9/Materials | Evolved 2 slots: Propulsion x1, Utility x1 4189 | -9/Materials | Identified exit to Storage 4190 | -9/Materials | Identified exit to Materials 4190 | -9/Materials | Identified exit to Mines 4639 | -9/Materials | Build established: Scavenger-Mutant 5053 | -9/Materials | Discovered exit to Materials (range 13) 5142 | -9/Materials | Discovered exit to Mines (range 15) 5190 | -9/Materials | Build established: Mutant 5556 | -9/Materials | Central database locked down 5646 | -9/Materials | Build established: Scavenger-Mutant 5766 | -9/Materials | Learned 4 Recycling zone layouts 5850 | -9/Materials | Learned location of Recycling (-9) 5888 | -9/Materials | Learned location of Mines (-9) 6243 | -9/Materials | Identified Exp. Sensor Array 6461 | -9/Materials | Build established: Mutant 7388 | -9/Materials | First assault squad dispatched 7424 | -9/Materials | Entered Storage 7425 | -9/Storage | Identified exit to Recycling 7426 | -9/Storage | Loaded intel: 17 trap records 7596 | -9/Storage | Core integrity fell below 50% 8092 | -9/Storage | Used back door to open Recycling access 8138 | -9/Storage | Repaired Broken Exp. Sensor Array? 9388 | -9/Storage | Build established: Scavenger-Mutant 9560 | -9/Storage | Entered Materials 9560 | -8/Materials | Evolved 2 slots: Propulsion x1, Utility x1 11012 | -8/Materials | Garrison activated, responded to threat 11160 | -8/Materials | First assault squad dispatched 11460 | -8/Materials | Garrison activated, responded to threat 11656 | -8/Materials | Discovered new exit (range 13) 11872 | -8/Materials | Learned location of Zion (-6) 11938 | -8/Materials | Learned 2 Storage zone layouts 11993 | -8/Materials | Learned 4 Recycling zone layouts 12038 | -8/Materials | Learned Factory trap positions 12072 | -8/Materials | Learned Factory emergency access door positions 12118 | -8/Materials | Learned location of 1 exit from Recycling 12249 | -8/Materials | Entered Factory 12249 | -7/Factory | Evolved 2 slots: Propulsion x1, Utility x1 12250 | -7/Factory | Loaded intel: 78 trap records 12361 | -7/Factory | Discovered new exit (range 10) 12409 | -7/Factory | Identified exit to Lower Caves 12539 | -7/Factory | Build established: Hacker-Sprinter 12562 | -7/Factory | Discovered new exit (range 15) 12741 | -7/Factory | Learned Extension stockpile data 12816 | -7/Factory | Learned Factory emergency access door positions 12875 | -7/Factory | Entered Lower Caves 12890 | -7/Lower Caves | Learned Factory stockpile data 12933 | -7/Lower Caves | Found DCF Scrap (11 items) 12945 | -7/Lower Caves | Discovered new exit (range 13) 12948 | -7/Lower Caves | Identified exit to Lower Caves 12948 | -7/Lower Caves | Entered another Lower Caves area 13098 | -7/Lower Caves | Build established: Sprinter 13227 | -7/Lower Caves | Discovered new exit (range 11) 13230 | -7/Lower Caves | Identified exit to Data Miner 13250 | -7/Lower Caves | Entered Data Miner 13250 | -7/Data Miner | Discovered new exit (range 6) 13256 | -7/Data Miner | Met Data Miner 13265 | -7/Data Miner | Learned location of Section 7 (-3) 13265 | -7/Data Miner | Acquired the access code to Warlord's prototype stash 13270 | -7/Data Miner | Received God Mode back door access code from Data Miner 13276 | -7/Data Miner | Identified exit to Proximity Caves 13276 | -7/Data Miner | Entered Proximity Caves 13346 | -6/Proximity Caves | Discovered new exit (range 13) 13350 | -6/Proximity Caves | Identified exit to Factory 13350 | -6/Proximity Caves | Entered Factory 13350 | -6/Factory | Evolved 2 slots: Utility x2 13351 | -6/Factory | Identified exit to Lower Caves 13557 | -6/Factory | Fabricated Hvy. Siege Treads? 13733 | -6/Factory | Fabricated Combat Drone Bay? 13899 | -6/Factory | Build established: Hacker-Mutant 14255 | -6/Factory | Spotted B-75 Beast 14548 | -6/Factory | Entered Lower Caves 14592 | -6/Lower Caves | Attacked by a delusional Derelict stockpiling parts 14699 | -6/Lower Caves | Build established: Mutant 14922 | -6/Lower Caves | Learned Factory garrison access intel 15380 | -6/Lower Caves | Discovered new exit (range 12) 15397 | -6/Lower Caves | Identified exit to Lower Caves 15400 | -6/Lower Caves | Entered another Lower Caves area 15407 | -6/Lower Caves | Discovered new exit (range 8) 15660 | -6/Lower Caves | Attracted the attention of an 0b10 checkpoint 15679 | -6/Lower Caves | Identified exit to Factory 16089 | -6/Lower Caves | Attacked by a delusional Derelict stockpiling Unaware 16360 | -6/Lower Caves | Discovered new exit (range 10) 16380 | -6/Lower Caves | Identified exit to Zion 16394 | -6/Lower Caves | Entered Zion 16394 | -6/Zion | Accompanied by 4 allies 16447 | -6/Zion | System corruption cleaned by Quarantine Array 16454 | -6/Zion | System corruption cleaned by Quarantine Array 16529 | -6/Zion | Build established: Commander-Mutant 16544 | -6/Zion | Discovered new exit (range 12) 16567 | -6/Zion | Acquired unknown access codes intercepted by a Zionite 16798 | -6/Zion | Found Prototype Special Weapon 16798 | -6/Zion | Identified RU-N14's Throwing Claymores 16944 | -6/Zion | Learned Factory terminal intel 17172 | -6/Zion | Met Imprinter 17388 | -6/Zion | Received a visual enhancement algorithm 17495 | -6/Zion | Visited the Megawrench Repair Shop 17497 | -6/Zion | Megawrench repaired 12 parts 17585 | -6/Zion | Found RU-N14's Throwing Claymores 17588 | -6/Zion | Found RU-N14's Throwing Claymores 17590 | -6/Zion | Found RU-N14's Throwing Claymores 18080 | -6/Zion | Opened final containment barrier to the Deep Caves 18106 | -6/Zion | Discovered new exit (range 3) 18106 | -6/Zion | Saw the warning signs outside the Deep Caves entrance 18127 | -6/Zion | Entered Deep Caves 18127 | -6/Deep Caves | Accompanied by 4 allies 18479 | -6/Deep Caves | Attacked by Z-Imprinter 18482 | -6/Deep Caves | Destroyed Z-Imprinter 18796 | -6/Deep Caves | Z-Facility disabled 18906 | -6/Deep Caves | Build established: Mutant 18983 | -6/Deep Caves | Found Prototype Protection 18989 | -6/Deep Caves | Identified Zio. Weapon Casing 19092 | -6/Deep Caves | Found Prototype Protection 19092 | -6/Deep Caves | Identified Zio. Heavy Carapace 19100 | -6/Deep Caves | Found Zio. Weapon Casing 19105 | -6/Deep Caves | Found Zio. Heavy Carapace 19498 | -6/Deep Caves | Discovered new exit (range 14) 19997 | -6/Deep Caves | Spotted AG-85748 20029 | -6/Deep Caves | Destroyed AG-85748 20453 | -6/Deep Caves | Spotted AG-14743 20467 | -6/Deep Caves | Destroyed AG-14743 20526 | -6/Deep Caves | Triggered Deep Caves wall 20526 | -6/Deep Caves | Spotted AS-83329 20526 | -6/Deep Caves | Spotted AS-85762 20526 | -6/Deep Caves | Destroyed AS-85762 20529 | -6/Deep Caves | Destroyed AS-83329 20558 | -6/Deep Caves | Exposed GOLEM chamber 20568 | -6/Deep Caves | Found Prototype Device 20569 | -6/Deep Caves | Identified Cloak of Protection 20579 | -6/Deep Caves | Destroyed 34 combat bots 20598 | -6/Deep Caves | Found GOLEM Unit 21090 | -6/Deep Caves | Build established: Golem 21145 | -6/Deep Caves | Found GOLEM Unit 21870 | -6/Deep Caves | Found GOLEM Unit 22698 | -6/Deep Caves | Found Zio. Weapon Casing 22981 | -6/Deep Caves | Entered Proximity Caves 23804 | -5/Proximity Caves | Spotted B-75 Beast 23847 | -5/Proximity Caves | Destroyed B-75 Beast 24564 | -5/Proximity Caves | Discovered exit to Factory (range 10) 24634 | -5/Proximity Caves | Entered Factory 24634 | -5/Factory | Evolved 2 slots: Power x1, Utility x1 24635 | -5/Factory | Loaded intel: 26 terminal locations 24636 | -5/Factory | Loaded intel: 4 garrison access locations 25077 | -5/Factory | Fabricated Lrn. Terrain Scanner (x2) 25696 | -5/Factory | Cargo convoy interrupted 25798 | -5/Factory | Lost 3 parts (2n1w) 25830 | -5/Factory | System corruption reached 10% 25932 | -5/Factory | Discovered new exit (range 16) 26149 | -5/Factory | Identified exit to Upper Caves 26434 | -5/Factory | First assault squad dispatched 26626 | -5/Factory | Entered Upper Caves 26628 | -5/Upper Caves | Attracted the attention of an 0b10 checkpoint 27214 | -5/Upper Caves | Discovered new exit (range 12) 27230 | -5/Upper Caves | Identified exit to Upper Caves 27293 | -5/Upper Caves | Entered another Upper Caves area 27319 | -5/Upper Caves | Discovered new exit (range 15) 27354 | -5/Upper Caves | Learned location of 1 exit from Factory 27806 | -5/Upper Caves | Spotted B-75 Beast 27811 | -5/Upper Caves | Destroyed B-75 Beast 28024 | -5/Upper Caves | Discovered new exit (range 15) 28054 | -5/Upper Caves | Identified exit to Warlord 28055 | -5/Upper Caves | Entered Warlord 28122 | -5/Warlord | System corruption cleaned by Quarantine Array 28272 | -5/Warlord | Met Warlord 28294 | -5/Warlord | Opened Warlord's prototype stash 28297 | -5/Warlord | Warlord's base attacked by MAIN.C 28308 | -5/Warlord | Found Prototype Device 28308 | -5/Warlord | Identified Thermal Barrier 28312 | -5/Warlord | Found Prototype Processor 28312 | -5/Warlord | Identified Spectral Analyzer 28320 | -5/Warlord | Found Ghost Barrier 28354 | -5/Warlord | Found Prototype Reactor 28363 | -5/Warlord | Identified Vortex Chain Reactor 28647 | -5/Warlord | Warlord forces counterattacked 28668 | -5/Warlord | Found Prototype Special Weapon 28668 | -5/Warlord | Identified RU-N14's Throwing Claymores v3 28672 | -5/Warlord | Found RU-N14's Throwing Claymores v3 28935 | -5/Warlord | Spotted Striker 28946 | -5/Warlord | Destroyed Striker 28972 | -5/Warlord | Warlord base infiltrated, sounded retreat 28979 | -5/Warlord | Lost 3 allies 28984 | -5/Warlord | Spotted Executioner 29064 | -5/Warlord | Found Prototype Launcher 29064 | -5/Warlord | Identified Chain Missile Launcher 29065 | -5/Warlord | Spotted Striker 29078 | -5/Warlord | Found Prototype Device 29078 | -5/Warlord | Identified Exp. Thermal Shield 29122 | -5/Warlord | Spotted Striker 29122 | -5/Warlord | Spotted Executioner 29124 | -5/Warlord | Spotted B-86 Titan 29130 | -5/Warlord | Spotted B-75 Beast 29177 | -5/Warlord | Lost 14 allies 29188 | -5/Warlord | Discovered new exit (range 12) 29204 | -5/Warlord | Identified exit to Proximity Caves 29206 | -5/Warlord | Entered Proximity Caves 29706 | -4/Proximity Caves | Spotted B-86 Titan 29717 | -4/Proximity Caves | Destroyed B-86 Titan 29856 | -4/Proximity Caves | Discovered new exit (range 7) 30526 | -4/Proximity Caves | Identified exit to Factory 30528 | -4/Proximity Caves | Entered Factory 30528 | -4/Factory | Evolved 2 slots: Power x1, Utility x1 30529 | -4/Factory | Identified exit to Extension 30530 | -4/Factory | Identified exit to Research 30582 | -4/Factory | Found Unknown Device 30582 | -4/Factory | Identified Quantum Capacitor 31247 | -4/Factory | Crushed by falling debris 31294 | -4/Factory | Build established: Scavenger-Golem 31320 | -4/Factory | Garrison activated, responded to threat 31533 | -4/Factory | Crushed by falling debris 31823 | -4/Factory | Sucked down chute 31823 | -4/Factory | Entered Waste 31838 | -4/Waste | EMP discharged 31913 | -4/Waste | Spotted C-40 Crusher 31938 | -4/Waste | EMP discharged 31938 | -4/Waste | System corruption reached 10% 31945 | -4/Waste | Spotted C-40 Crusher 32005 | -4/Waste | Crushed by Compactor (1 part destroyed, 2 dropped) 32032 | -4/Waste | Spotted C-40 Crusher 32036 | -4/Waste | Spotted C-40 Crusher 32038 | -4/Waste | EMP discharged 32039 | -4/Waste | Spotted C-40 Crusher 32099 | -4/Waste | Destroyed C-40 Crusher 32125 | -4/Waste | Destroyed C-40 Crusher 32138 | -4/Waste | EMP discharged 32140 | -4/Waste | Crushed by Compactor (0 parts destroyed, 1 dropped) 32142 | -4/Waste | Found Damper Plating 32225 | -4/Waste | Destroyed C-40 Crusher 32228 | -4/Waste | Spotted C-40 Crusher 32238 | -4/Waste | EMP discharged 32267 | -4/Waste | Destroyed C-40 Crusher 32270 | -4/Waste | Destroyed C-40 Crusher 32276 | -4/Waste | Destroyed C-40 Crusher 32315 | -4/Waste | Build established: Golem 32338 | -4/Waste | EMP discharged 32438 | -4/Waste | EMP discharged 32473 | -4/Waste | Discovered new exit (range 12) 32538 | -4/Waste | EMP discharged 32638 | -4/Waste | EMP discharged 32738 | -4/Waste | EMP discharged 32838 | -4/Waste | EMP discharged 32938 | -4/Waste | EMP discharged 33038 | -4/Waste | EMP discharged 33116 | -4/Waste | Entered Factory 33952 | -4/Factory | Discovered exit to Extension (range 11) 33989 | -4/Factory | Entered Extension 33995 | -4/Extension | Build established: Scavenger-Golem 34291 | -4/Extension | Energy Cycler disabled 34292 | -4/Extension | Rescued a captive Derelict 34292 | -4/Extension | Rescued a captive Derelict 34292 | -4/Extension | Rescued a captive Derelict 34292 | -4/Extension | Rescued a captive Derelict 34292 | -4/Extension | Rescued a captive Derelict 34294 | -4/Extension | Rescued a captive Derelict 34296 | -4/Extension | Rescued a captive Derelict 34296 | -4/Extension | Rescued a captive Derelict 34297 | -4/Extension | Rescued a captive Derelict 34299 | -4/Extension | Rescued a captive Derelict 34658 | -4/Extension | Spotted B-86 Titan 34671 | -4/Extension | Allies destroyed B-86 Titan 34689 | -4/Extension | Spotted B-86 Titan 34691 | -4/Extension | Discovered exit to Research (range 15) 34746 | -4/Extension | Lost 4 parts (2n1u1w) 34761 | -4/Extension | Destroyed B-86 Titan 34764 | -4/Extension | Disrupted transfer network 34871 | -4/Extension | Destroyed 9 combat bots 34989 | -4/Extension | First assault squad dispatched 35079 | -4/Extension | Incoming assault squad redirected 35552 | -4/Extension | Discovered exit to Research (range 10) 35554 | -4/Extension | Discovered new exit (range 6) 35742 | -4/Extension | Entered Cetus 35742 | -4/Cetus | Accompanied by 3 allies 35771 | -4/Cetus | Spotted Cetus Guard 35774 | -4/Cetus | Spotted Cetus Guard 35778 | -4/Cetus | Destroyed Cetus Guard 35793 | -4/Cetus | Destroyed Cetus Guard 35802 | -4/Cetus | Destroyed Cetus Guard 35804 | -4/Cetus | Spotted Cetus Guard 35817 | -4/Cetus | Destroyed Cetus Guard 35896 | -4/Cetus | Build established: Golem 36018 | -4/Cetus | Found a strange terminal 36071 | -4/Cetus | Discovered new exit (range 15) 36118 | -4/Cetus | Destroyed Cetus Guard 36123 | -4/Cetus | Spotted Cetus Guard 36124 | -4/Cetus | Destroyed Cetus Guard 36126 | -4/Cetus | Spotted Cetus Guard 36126 | -4/Cetus | Spotted Cetus Guard 36133 | -4/Cetus | Destroyed Cetus Guard 36139 | -4/Cetus | Destroyed Cetus Guard 36169 | -4/Cetus | Discovered exit to Research (range 15) 36180 | -4/Cetus | Met Revision 17 36292 | -4/Cetus | Entered Archives 36901 | -4/Archives | Crushed by falling debris 36913 | -4/Archives | Discovered new exit (range 8) 37203 | -4/Archives | Build established: Scavenger-Golem 37360 | -4/Archives | Met Zhirov 37366 | -4/Archives | Reinforcements dispatched to Archives 37369 | -4/Archives | Entered Hub_04(d) 38119 | -4/Hub_04(d) | First assault squad dispatched 38134 | -4/Hub_04(d) | Incoming assault squad redirected 38275 | -4/Hub_04(d) | Core integrity fell below 50% 38665 | -4/Hub_04(d) | Network Hub disabled 38717 | -4/Hub_04(d) | Spotted Lightning 38717 | -4/Hub_04(d) | Spotted Lightning 38718 | -4/Hub_04(d) | Spotted Lightning 38759 | -4/Hub_04(d) | Destroyed Lightning 38774 | -4/Hub_04(d) | Destroyed Lightning 38783 | -4/Hub_04(d) | Destroyed Lightning 38804 | -4/Hub_04(d) | Found Prototype Device 38805 | -4/Hub_04(d) | Identified Exp. EM Disruption Field 38820 | -4/Hub_04(d) | Found Prototype Energy Cannon 38826 | -4/Hub_04(d) | Found Exp. EM Disruption Field 38940 | -4/Hub_04(d) | Network Hub disabled 39199 | -4/Hub_04(d) | Incoming assault squad redirected 39211 | -4/Hub_04(d) | Spotted Lightning 39213 | -4/Hub_04(d) | Spotted Lightning 39216 | -4/Hub_04(d) | Spotted Lightning 39258 | -4/Hub_04(d) | Destroyed Lightning 39322 | -4/Hub_04(d) | Network Hub disabled 39332 | -4/Hub_04(d) | Found Corrupted Exp. EM Disruption Field 39344 | -4/Hub_04(d) | Entered Research 39344 | -3/Research | Evolved 2 slots: Utility x1, Weapon x1 39544 | -3/Research | Revision forces began assault on 0b10 39558 | -3/Research | Met up with Revision 17++ 39629 | -3/Research | Build established: Golem 39900 | -3/Research | Lost 5 allies 39910 | -3/Research | Found Prototype Device 39911 | -3/Research | Identified Adv. Kinecellerator 40029 | -3/Research | Identified exit to Armory 40029 | -3/Research | Identified exit to Quarantine 40044 | -3/Research | Research terminal network offline 40159 | -3/Research | Entered Quarantine 40309 | -3/Quarantine | Build established: Hacker-Golem 40687 | -3/Quarantine | Identified EMDS 40697 | -3/Quarantine | Discovered new exit (range 16) 40758 | -3/Quarantine | Identified exit to Research 40844 | -3/Quarantine | Found Alien Artifact 40844 | -3/Quarantine | Identified Phase Redirector 40875 | -3/Quarantine | Build established: Golem 40998 | -3/Quarantine | Identified exit to Section 7 41128 | -3/Quarantine | Learned Research garrison access intel 41196 | -3/Quarantine | Found Alien Artifact 41196 | -3/Quarantine | Identified Core Reset Matrix 41196 | -3/Quarantine | Used Core Reset Matrix 41200 | -3/Quarantine | Detected hypermatrix surge 41200 | -3/Quarantine | Sensed 5 artifacts in vicinity 41241 | -3/Quarantine | Learned location of 2 exits from Research 41275 | -3/Quarantine | Loaded intel: 14 terminal locations 41319 | -3/Quarantine | Learned 4 Research zone layouts 41371 | -3/Quarantine | Learned Testing non-interactive machine intel 41736 | -3/Quarantine | Spotted Fortress 42369 | -3/Quarantine | Entered Section 7 42370 | -3/Section 7 | Sensed 19 artifacts in vicinity 42879 | -3/Section 7 | Spotted S7 Guard 42892 | -3/Section 7 | Destroyed S7 Guard 42927 | -3/Section 7 | Found Core Physics Calibrator 43357 | -3/Section 7 | Found Prototype Protection 43357 | -3/Section 7 | Identified Centrium Heavy Armor Plating 43514 | -3/Section 7 | Found Spacefold Activator 43619 | -3/Section 7 | Spotted S7 Guard 43644 | -3/Section 7 | Destroyed S7 Guard 43652 | -3/Section 7 | Build established: Tank 43669 | -3/Section 7 | Found Prototype Protection 43671 | -3/Section 7 | Identified Hvy. Regenerative Plating 43799 | -3/Section 7 | Spotted Alpha 7 43803 | -3/Section 7 | Spotted Alpha 7 43848 | -3/Section 7 | Garrison activated, responded to threat 43862 | -3/Section 7 | Destroyed Alpha 7 43903 | -3/Section 7 | System corruption reached 10% 43917 | -3/Section 7 | First assault squad dispatched 43932 | -3/Section 7 | Incoming assault squad redirected 43965 | -3/Section 7 | Spotted B-99 Colossus 43992 | -3/Section 7 | Lost 13 parts (3p2n5u3w) 44017 | -3/Section 7 | Core integrity fell below 50% 44021 | -3/Section 7 | System corruption reached 30% 44048 | -3/Section 7 | Found Integrated Dissipator 44048 | -3/Section 7 | Installed Integrated Dissipator, increased core heat dissipation (+20) 44053 | -3/Section 7 | Found Integrated Dissipator 44053 | -3/Section 7 | Installed Integrated Dissipator, increased core heat dissipation (+20) 44378 | -3/Section 7 | Build established: Alien-Golem 44689 | -3/Section 7 | Scanned by Researcher 44742 | -3/Section 7 | Core integrity fell below 20% 44744 | -3/Section 7 | Destroyed by P-80 Master with Gamma Rifle Last Messages --------------- 44739_ Asb. Alloy Armor destroyed. 44739_ Penetrated by Slug. 44739_ Slug penetrates Reinforced Barrier. 44739_ Penetrated by Slug. 44739_ Asb. Flux Generator destroyed. 44739_ Asb. Suspension Frame destroyed. 44739_ Penetrated by Slug. 44739_ Asb. Nanovents destroyed. 44741_ Chain Missile Launcher destroyed. 44741_ Destroyed Chain Missile Launcher. 44741_ Destroyed Unknown Energy Gun. 44741_ P-80 Master destroyed. 44742_ P-80 Master resets P-80 Master, system corruption cleaned. 44744_ Slug penetrates B-99 Colossus. 44744_ Asb. Focal Cannon destroyed. 44744_ GOLEM Unit destroyed. 44744_ Critical hit (Blast). 44744_ Penetrated by Slug. 44744_ Slug penetrates Reinforced Barrier. Map ----- +----------------------------------------------------+ | # ![! / ??? "" ????? | | # =%[ / "???? " ???? | | != / """?" ???? | | # ##### # *[ ??" ??? | | # #???###"""!%! """"" ??? | | # #?????#"""!= ??? | | #?????#""" ??? | | #?????#"" ????? | | #?????#" """??????? | | #?????# "" " """"" #?????????? | | ######?????# """ """""""" #?????????? | | ???????????##################### ###//#?????????? | | ???????????????????????????????# ### #?????????? | | ???????????????????????????????####?# #?????????? | | ????????????????????????????????????# #?????????? | | ????????????????????????????????????# #?????????? | | ????????????????????????????????????# #?????????? | | ????????????????????????????????????# #?????????? | | ????????????????????????????????????# #?????????? | | ?????????????????????????############ #### " | | ?????????????????????????# | | ?????????????????????????# | | ?????????????????????????# ###############" | | ?????????????????????##### #???????????????? | | ??????????????????#### !#h%#####?????????????? | | ??????????????????# p @p """"#????????????????? | | ??????????????????# pppBB """#????????????????? | | ??????????????????# = BB% """#????????????????? | | ??????????????????# = """#????????????????? | | ??????????????????#"""" """#????????????????? | | ??????????????????#""""" """#????????????????? | | ??????????????????#""""" """#????????????????? | | ???????????????????"@ """"?????????????????? | | ????????????????????""" """?????????????????? | | ??????????????????????"" """??????????????????? | | ??????????????????????#### ##???????????????????? | | ?????????????????????????? #????????????????????? | | ?????????????????????????? #????????????????????? | | ?????????????????????????? #????????????????????? | | ?????????????????????????? #????????????????????? | | ?????????????????????????? ?????????????????????? | | ?????????????????????????????????????????????????? | | ?????????????????????????????????????????????????? | | ?????????????????????????????????????????????????? | | ?????????????????????????????????????????????????? | | ?????????????????????????????????????????????????? | | ?????????????????????????????????????????????????? | | ??????????????????????????????????????!????!?????? | | ???????????????????????????????????????????!?????? | | ?????????????????????????????????????????????????? | +----------------------------------------------------+ Best States ------------- Heat Dissipation 131 Energy Generation 83 Energy Capacity 3150 Matter Stores 300 Matter Capacity 500 Sight Range 24 Robot Scan Range 20 Terrain Scan Range 24 Terrain Scan Density 85 ECM Strength 1 Jamming Range 16 Cloak Strength 5 Power Amplification 30 Additional Mass Support 20 EM Shielding 4 Armor Coverage 3200 Resistance: KI 15 Resistance: TH 50 Resistance: EX 25 Resistance: EM 90 Resistance: I 15 Resistance: S 15 Resistance: P 15 Power Shielding 66 Utility Shielding 66 Weapon Shielding 100 Phase Shifting 8 Evasion (%) 64 Targeting Accuracy 8 Target Analysis 5 Core Analysis 8 Recoil Reduction 5 Energy Filtering 30 Offensive Hacking 30 Defensive Hacking 12 Authchip Count 3 Item Schematics ----------------- None Robot Schematics ------------------ None Fabricated ------------ Hvy. Siege Treads | x1 | -6/Factory | Preloaded Combat Drone Bay | x1 | -6/Factory | Authchip Lrn. Terrain Scanner | x2 | -5/Factory | Authchip Alien Tech Used ----------------- Phase Redirector Core Reset Matrix Spacefold Activator Integrated Dissipator Core Physics Calibrator Achievements -------------- None Challenges ------------ None Game ------ Seed MasterSmallSteel Manual? 0 Play Time 06:45:15 Cumulative 403.9 hours Start 2024.10.22 @ 12:09:55 End 2024.10.24 @ 15:11:31 Sessions 9 Manual Loads 0 Difficulty Rogue Special Mode None Game No. 278 Rogue 273 Adventurer 5 Explorer 0 Win Type - Total 9 Types 4/0/5/0/0/0/0/0/0 Lore% 75 Gallery% 88 Achievement% 73 Wizard Run 0 Options --------- Layout 2 ASCII 0 Keyboard 0 Movement Mouse Keybinds 0 Fullscreen 2 Font 24/Smallcaps Map View 50x44 Zoom Use 0% Tactical HUD 1 Map Filters NONE Filters NONE Steam 1 RUN: 4dedc7ae-f833-4c62-bc77-af667f9b0e34